Department Family,Entity,Payment Date,Expense Type,Expense Area,Supplier,Transaction Number,Amount,Invoice Description,Postal Code,Expenditure Type
Food Standards Agency,Food Standards Agency,03/07/2015,ASD support services,IT Service Delivery,Capita Secure Information Solutions Ltd,6060004406,"278,818.08",JUN 2015 CAPITA MONTHLY CORE SERVICE CHARGE,SN14 0TW,Admin
Food Standards Agency,Food Standards Agency,03/07/2015,Civil service pension administration,Finance Director & Branch,London Pensions Fund Authority,FSAJUN15,"162,166.00",PO 422045 JUN 15 FUND VALUATION 2013,EC3N 4LP,Admin
Food Standards Agency,Food Standards Agency,15/07/2015,Civil service pension administration,Finance Director & Branch,London Pensions Fund Authority,FSAJUL15,"162,166.00",PO 422045 JUL 15 FUND VALUATION,EC3N 4LP,Admin
Food Standards Agency,Food Standards Agency,07/07/2015,Rates/contrib in lieu of rates,Security & Estates,London Borough Of Camden,3.00415E+13,"104,652.00",AVH RATES (BSMT TO PART 2ND FLOOR - JULY INSTALMENT,WC1H 8NH,Admin
Food Standards Agency,Food Standards Agency,27/07/2015,IT Software Licences,IT Strategy,Microsoft Ltd,9620827524,"92,024.00",PO 422478 PREMIER PLUS PACKAGE,RG6 1WG,Admin
Food Standards Agency,Food Standards Agency,15/07/2015,IT equipment maintenance,IT Strategy,Capita Secure Information Solutions Ltd,6060002260,"90,000.00",PO 407927 MILESTONE 7 -DATA CENTRE MIGRATION OF SERVICES,SN14 0TW,Admin
Food Standards Agency,Food Standards Agency,27/07/2015,Project Programme expenditure,Contaminants HoD,C E F A S,8004942,"67,938.15",PO 418529 C6134 AD HOC MONITORING STAKEHOLDER EHWG MEETING SELLAFIELD,NR33 0HT,Programme
Food Standards Agency,Food Standards Agency,27/07/2015,Project Programme expenditure,Contaminants HoD,C E F A S,8004942,"67,938.15",PO 418529 C6134 AD HOC MONITORING STAKEHOLDER EHWG MEETING SELLAFIELD,NR33 0HT,Programme
Food Standards Agency,Food Standards Agency,27/07/2015,Project Programme expenditure,Contaminants HoD,C E F A S,8004995,"67,938.15",PO 418529 INVOICE FOR THE PERIOD JUNE 2015,NR33 0HT,Programme
Food Standards Agency,Food Standards Agency,15/07/2015,Project Programme expenditure,Analysis & Research Branch,London School Of Economics,SIN144594,"57,862.60",PO 419181 PAYMENT IS NOW REQUESTED TIME PERIOD 01.04.2014 TO 31.03.15,WC2A 2AE,Programme
Food Standards Agency,Food Standards Agency,31/07/2015,Project Programme expenditure,Chemical Risk Assessment Unit,Fera Science Limited,6138002474,"53,950.69",PO 414124 FSA PROJECT CODE FS616030 APRIL -JUN 2015,YO41 1LZ,Programme
Food Standards Agency,Food Standards Agency,23/07/2015,Project Programme expenditure,Analysis & Research Branch,Fera Science Limited,6138002211,"52,390.31",PO 414124 FR 00020 NRL CHEMICAL CONTAINMENTS QTRLY REPORT 8,YO41 1LZ,Programme
Food Standards Agency,Food Standards Agency,17/07/2015,IT Software Licences,IT Service Delivery,Trustmarque Solutions Ltd,2231742,"45,480.96",MICROSOFT LICENSING ENTERPRISE AGREEMENT,YO32 9GZ,Admin
Food Standards Agency,Food Standards Agency,17/07/2015,IT Software Licences,IT Service Delivery,Trustmarque Solutions Ltd,2231742,"45,480.96",MICROSOFT LICENSING ENTERPRISE AGREEMENT,YO32 9GZ,Admin
Food Standards Agency,Food Standards Agency,29/07/2015,IT Software Licences,IT Service Delivery,Trustmarque Solutions Ltd,2231742,"45,480.96",MICROSOFT LICENSING ENTERPRISE AGREEMENT,YO32 9GZ,Admin
Food Standards Agency,Food Standards Agency,29/07/2015,Project Programme expenditure,Chief Scientist,T N S Uk Ltd,260150812,"43,126.50",PO 422512  UNDERSTANDING OF FOOD RISK,W5 1UA,Programme
Food Standards Agency,Food Standards Agency,31/07/2015,Programme Evidence & Research Expenditure,Allergens,University Of Southampton,44166319,"43,098.00",PO 420184 REVISITING THE UK EUROPREVALL COHORT 8-9 YEARS OF AGE,SO17 1BJ,Programme
Food Standards Agency,Food Standards Agency,29/07/2015,Project Programme expenditure,EU Regulatory Reform Branch,University Of Lincoln,12054577,"42,000.00",PO 419062 MICROBIAL EVALUATION OF POULTRY,LN6 7TS,Programme
Food Standards Agency,Food Standards Agency,07/07/2015,IT Software Licences,IT Service Delivery,Trustmarque Solutions Ltd,2231745,"39,567.50",MICROSOFT LICENSING ENTERPRISE AGREEMENT,YO32 9GZ,Admin
Food Standards Agency,Food Standards Agency,29/07/2015,IT Software Licences,IT Service Delivery,Trustmarque Solutions Ltd,2231943,"39,567.50",MICROSOFT LICENSING ENTERPRISE AGREEMENT,YO32 9GZ,Admin
Food Standards Agency,Food Standards Agency,07/07/2015,IT Software Licences,IT Service Delivery,Trustmarque Solutions Ltd,2231745,"37,020.00",MICROSOFT LICENSING ENTERPRISE AGREEMENT,YO32 9GZ,Admin
Food Standards Agency,Food Standards Agency,29/07/2015,IT Software Licences,IT Service Delivery,Trustmarque Solutions Ltd,2231943,"37,020.00",MICROSOFT LICENSING ENTERPRISE AGREEMENT,YO32 9GZ,Admin
Food Standards Agency,Food Standards Agency,21/07/2015,Programme Evidence & Research Expenditure,Contaminants HoD,C E F A S,8004958,"36,803.00",PO 414854 Q1 YEAR 3,NR33 0HT,Programme
Food Standards Agency,Food Standards Agency,27/07/2015,Project Programme expenditure,Consumer Protection & Commercial Support,DEFRA,1000054090,"35,270.00",PO 421673 DEFRA 017 DEFRA OGD RECHARGE,YO1 7PX,Programme
Food Standards Agency,Food Standards Agency,01/07/2015,Programme Evidence & Research Expenditure,Contaminants Policy & Strategy Unit,Fera Science Limited,6138001725,"35,000.00",PO 415472 INVESTIGATION OF POTENTIAL TRANSFER,YO41 1LZ,Programme
Food Standards Agency,Food Standards Agency,27/07/2015,IT Development projects,IT Strategy,Microsoft Ltd,9620823773,"33,767.51",PO 422403 REMITTING PAYMENT,RG6 1WG,Admin
Food Standards Agency,Food Standards Agency,27/07/2015,IT Development projects,IT Strategy,Microsoft Ltd,9620823773,"33,767.51",PO 422403 REMITTING PAYMENT,RG6 1WG,Admin
Food Standards Agency,Food Standards Agency,07/07/2015,IT Software Licences,IT Service Delivery,Trustmarque Solutions Ltd,2231745,"33,725.00",MICROSOFT LICENSING ENTERPRISE AGREEMENT,YO32 9GZ,Admin
Food Standards Agency,Food Standards Agency,29/07/2015,IT Software Licences,IT Service Delivery,Trustmarque Solutions Ltd,2231943,"33,725.00",MICROSOFT LICENSING ENTERPRISE AGREEMENT,YO32 9GZ,Admin
Food Standards Agency,Food Standards Agency,27/07/2015,Programme Evidence & Research Expenditure,Allergens,University Of Bath,55619,"33,700.00",PO 417097 RE PS1055 INVOICE FOR DELIVERABLES D10-D17,BA2 7AY,Programme
Food Standards Agency,Food Standards Agency,07/07/2015,Project Programme expenditure,Analysis & Research Branch,T N S Uk Ltd,260150669,"33,296.00",PO 417550 COUNTRY ANALYSIS & REPORTING,W5 1UA,Programme
Food Standards Agency,Food Standards Agency,15/07/2015,Telecomms-data networks & call charges,IT Service Delivery,Vodafone Ltd,UK100720154622,"32,267.74",VODAFONE QUARTERLY NETWORK CHARGE (PUBLIC SECTOR NETWORK),RG14 5FF,Admin
Food Standards Agency,Food Standards Agency,23/07/2015,Project Programme expenditure,Analysis & Research Branch,Fera Science Limited,6138002211,"31,934.00",PO 414124 FR 00020 NRL CHEMICAL CONTAINMENTS QTRLY REPORT 8,YO41 1LZ,Programme
Food Standards Agency,Food Standards Agency,21/07/2015,Project Programme expenditure,Analysis & Research Branch,C E F A S,8004986,"31,361.40",PO 414837 QTR 1 INVOICE FOR APRIL TO JUNE 2015 2016,NR33 0HT,Programme
Food Standards Agency,Food Standards Agency,23/07/2015,Fixed Assets Additions,Operations Assurance,Capita Secure Information Solutions Ltd,6060003438,"30,180.94",PO 422577 APRIL 2015,SN14 0TW,Capital
Food Standards Agency,Food Standards Agency,17/07/2015,Project Programme expenditure,Chemical Risk Assessment Unit,University Of Hull,SOIN57692,"30,000.00",PO 408162 INVOICE FOR RETENSION PAYMENT ON RECIEPT OF D9 FINAL REPORT REF - YNA014,HU6 7RX,Programme
Food Standards Agency,Food Standards Agency,09/07/2015,Project Programme expenditure,Chief Scientist,Elsevier B V,M250837,"29,640.00",GOVT EDITION FEE OCT 14-SEP 15,1043 NX,Programme
Food Standards Agency,Food Standards Agency,17/07/2015,Utilities,Security & Estates,E D F Energy,536646,"28,283.42",EDF INV 536646 AVH ELECTRICITY CHARGES - JUNE 15,EX1 3UT,Admin
Food Standards Agency,Food Standards Agency,21/07/2015,Project Programme expenditure,Operations Local Delivery ,C E F A S,8004961,"27,666.00",PO 422677 QTR 1 INVOICE 1 APRIL 2015 TO 30 JUNE 2015,NR33 0HT,Programme
Food Standards Agency,Food Standards Agency,03/07/2015,Service charges,Security & Estates,G4s Integrated Services (Uk) Ltd,90028645,"26,864.50",G4S MONTHLY FM CHARGES - JUNE 2015,S81 7QF,Admin
Food Standards Agency,Food Standards Agency,27/07/2015,Service charges,Security & Estates,G4s Integrated Services (Uk) Ltd,90037098,"26,864.50",G4S MONTHLY FM CHARGES - JULY 2015,S81 7QF,Admin
Food Standards Agency,Food Standards Agency,28/07/2015,Project Programme expenditure,Animal Feed     ,Trading Standards Institute (GRANTS),ERS-42078-52619,"25,750.00",Feed Off. Conts 2015/16 NTS Prog fees Q2. Feed Official Controls funding 2015/16: NTS Programme Office fees (Q2).,SS15 6TH,Programme
Food Standards Agency,Food Standards Agency,09/07/2015,Laundry,Operational Delivery,Apparelmaster UK Ltd,61684,"25,262.52",PO 421794 REGION 546 - NEW CONTRACT,PR2 9ZD,Programme
Food Standards Agency,Food Standards Agency,27/07/2015,Programme Evidence & Research Expenditure,Allergens,University Of Bath,55619,"25,000.00",PO 417097 RE PS1055 INVOICE FOR DELIVERABLES D10-D17,BA2 7AY,Programme
Food Standards Agency,Food Standards Agency,27/07/2015,Programme Evidence & Research Expenditure,Allergens,University Of Bath,55619,"25,000.00",PO 417097 RE PS1055 INVOICE FOR DELIVERABLES D10-D17,BA2 7AY,Programme
Food Standards Agency,Food Standards Agency,13/07/2015,Project Programme expenditure,Comms Directors Office,Carat,213470,"24,974.64",PO 421968 NEWS MEDIA ASSOCIATION  P00265144 21MAY15 4CLR,NW1 3BF,Programme
Food Standards Agency,Food Standards Agency,03/07/2015,IT equipment maintenance,IT Service Delivery,Capita Secure Information Solutions Ltd,6060004281,"24,486.00",CAPITA CONTRACT MILESTONE PAYMENT,SN14 0TW,Admin
Food Standards Agency,Food Standards Agency,09/07/2015,Project Programme expenditure,Operations Local Delivery ,Williams Lea Ltd,FSAWE15060009,"22,776.49",PO 422328  TOTAL STD RATED SUPPLIES,W2 6LG,Programme
Food Standards Agency,Food Standards Agency,27/07/2015,IT Development projects,IT Strategy,Microsoft Ltd,9620823773,"22,511.67",PO 422403 REMITTING PAYMENT,RG6 1WG,Admin
Food Standards Agency,Food Standards Agency,27/07/2015,IT Development projects,IT Strategy,Microsoft Ltd,9620823773,"22,511.67",PO 422403 REMITTING PAYMENT,RG6 1WG,Admin
Food Standards Agency,Food Standards Agency,31/07/2015,Project Programme expenditure,Contaminants Policy & Strategy Unit,Fera Science Limited,6138002432,"22,335.80","PO 421518,DETERMINATION OF MASKED MYCOTOXIN IN CEREAL, FS102101, 30/06/15",YO41 1LZ,Programme
Food Standards Agency,Food Standards Agency,21/07/2015,ASD support services,Finance Director & Branch,Shared Services Connected Ltd,100001235,"22,044.61","PO 419996, FIXED MONTHLY CHARGE, JULY 2015",HP2 7AH,Admin
Food Standards Agency,Food Standards Agency,27/07/2015,Project Programme expenditure,Allergens,University Of Bath,55619,"20,000.00",PO 417097 RE PS1055 INVOICE FOR DELIVERABLES D10-D17,BA2 7AY,Programme
Food Standards Agency,Food Standards Agency,15/07/2015,IT equipment maintenance,IT Strategy,Capita Secure Information Solutions Ltd,6060002260,"18,000.00",PO 407927 MILESTONE 7 -DATA CENTRE MIGRATION OF SERVICES,SN14 0TW,Admin
Food Standards Agency,Food Standards Agency,29/07/2015,Project Programme expenditure,Chief Scientist,Veraz Ltd,FSAGBS009,"17,489.00",PO 414139 REATAINED 20%,LA1 4XF,Programme
Food Standards Agency,Food Standards Agency,07/07/2015,IT Software Licences,IT Service Delivery,Trustmarque Solutions Ltd,2231745,"17,327.31",MICROSOFT LICENSING ENTERPRISE AGREEMENT,YO32 9GZ,Admin
Food Standards Agency,Food Standards Agency,29/07/2015,IT Software Licences,IT Service Delivery,Trustmarque Solutions Ltd,2231943,"17,327.31",MICROSOFT LICENSING ENTERPRISE AGREEMENT,YO32 9GZ,Admin
Food Standards Agency,Food Standards Agency,27/07/2015,Programme Evidence & Research Expenditure,Contaminants HoD,C E F A S,8004937,"16,551.00",PO 418176 C6133 INVOICE FOR THE PERIOD APRIL 2015,NR33 0HT,Programme
Food Standards Agency,Food Standards Agency,27/07/2015,Programme Evidence & Research Expenditure,Contaminants HoD,C E F A S,8004937,"16,551.00",PO 418176 C6133 INVOICE FOR THE PERIOD APRIL 2015,NR33 0HT,Programme
Food Standards Agency,Food Standards Agency,03/07/2015,Security,Security & Estates,G4s Integrated Services (Uk) Ltd,90028645,"16,532.64",G4S MONTHLY SECURITY CHARGES - JUNE 2015,S81 7QF,Admin
Food Standards Agency,Food Standards Agency,27/07/2015,Security,Security & Estates,G4s Integrated Services (Uk) Ltd,90037098,"16,532.64",G4S MONTHLY SECURITY CHARGES - JULY 2015,S81 7QF,Admin
Food Standards Agency,Food Standards Agency,03/07/2015,Service charges,Security & Estates,G4s Integrated Services (Uk) Ltd,90028645,"16,346.26",G4S MONTHLY CONTRACT CHARGES JULY 2015,S81 7QF,Admin
Food Standards Agency,Food Standards Agency,27/07/2015,Service charges,Security & Estates,G4s Integrated Services (Uk) Ltd,90037098,"16,346.26",G4S MONTHLY CONTRACT CHARGES JUNE 2015,S81 7QF,Admin
Food Standards Agency,Food Standards Agency,07/07/2015,IT Software Licences,IT Service Delivery,Trustmarque Solutions Ltd,2231745,"14,867.50",MICROSOFT LICENSING ENTERPRISE AGREEMENT,YO32 9GZ,Admin
Food Standards Agency,Food Standards Agency,29/07/2015,IT Software Licences,IT Service Delivery,Trustmarque Solutions Ltd,2231943,"14,867.50",MICROSOFT LICENSING ENTERPRISE AGREEMENT,YO32 9GZ,Admin
Food Standards Agency,Food Standards Agency,17/07/2015,IT Software Licences,IT Service Delivery,Trustmarque Solutions Ltd,2231742,"13,426.56",MICROSOFT LICENSING ENTERPRISE AGREEMENT,YO32 9GZ,Admin
Food Standards Agency,Food Standards Agency,17/07/2015,IT Software Licences,IT Service Delivery,Trustmarque Solutions Ltd,2231742,"13,426.56",MICROSOFT LICENSING ENTERPRISE AGREEMENT,YO32 9GZ,Admin
Food Standards Agency,Food Standards Agency,29/07/2015,IT Software Licences,IT Service Delivery,Trustmarque Solutions Ltd,2231742,"13,426.56",MICROSOFT LICENSING ENTERPRISE AGREEMENT,YO32 9GZ,Admin
Food Standards Agency,Food Standards Agency,17/07/2015,IT Software Licences,IT Service Delivery,Trustmarque Solutions Ltd,2231742,"12,866.40",MICROSOFT LICENSING ENTERPRISE AGREEMENT,YO32 9GZ,Admin
Food Standards Agency,Food Standards Agency,17/07/2015,IT Software Licences,IT Service Delivery,Trustmarque Solutions Ltd,2231742,"12,866.40",MICROSOFT LICENSING ENTERPRISE AGREEMENT,YO32 9GZ,Admin
Food Standards Agency,Food Standards Agency,29/07/2015,IT Software Licences,IT Service Delivery,Trustmarque Solutions Ltd,2231742,"12,866.40",MICROSOFT LICENSING ENTERPRISE AGREEMENT,YO32 9GZ,Admin
Food Standards Agency,Food Standards Agency,27/07/2015,Programme Evidence & Research Expenditure,Allergens,University Of Bath,55619,"10,000.00",PO 417097 RE PS1055 INVOICE FOR DELIVERABLES D10-D17,BA2 7AY,Programme
Food Standards Agency,Food Standards Agency,17/07/2015,IT Software Licences,IT Service Delivery,Trustmarque Solutions Ltd,2231742,"9,096.19",MICROSOFT LICENSING ENTERPRISE AGREEMENT,YO32 9GZ,Admin
Food Standards Agency,Food Standards Agency,17/07/2015,IT Software Licences,IT Service Delivery,Trustmarque Solutions Ltd,2231742,"9,096.19",MICROSOFT LICENSING ENTERPRISE AGREEMENT,YO32 9GZ,Admin
Food Standards Agency,Food Standards Agency,29/07/2015,IT Software Licences,IT Service Delivery,Trustmarque Solutions Ltd,2231742,"9,096.19",MICROSOFT LICENSING ENTERPRISE AGREEMENT,YO32 9GZ,Admin
Food Standards Agency,Food Standards Agency,03/07/2015,Service charges,Security & Estates,G4s Integrated Services (Uk) Ltd,90028645,"8,642.15",G4S MONTHLY - JUNE 2015 - VAT ON FM & CLEANING ,S81 7QF,Admin
Food Standards Agency,Food Standards Agency,27/07/2015,Service charges,Security & Estates,G4s Integrated Services (Uk) Ltd,90037098,"8,642.15",G4S MONTHLY  - JULY 2015 - VAT ON FM & CLEANING ,S81 7QF,Admin
Food Standards Agency,Food Standards Agency,07/07/2015,IT Software Licences,IT Service Delivery,Trustmarque Solutions Ltd,2231745,"8,550.00",MICROSOFT LICENSING ENTERPRISE AGREEMENT,YO32 9GZ,Admin
Food Standards Agency,Food Standards Agency,29/07/2015,IT Software Licences,IT Service Delivery,Trustmarque Solutions Ltd,2231943,"8,550.00",MICROSOFT LICENSING ENTERPRISE AGREEMENT,YO32 9GZ,Admin
Food Standards Agency,Food Standards Agency,07/07/2015,IT Software Licences,IT Service Delivery,Trustmarque Solutions Ltd,2231745,"7,913.50",MICROSOFT LICENSING ENTERPRISE AGREEMENT,YO32 9GZ,Admin
Food Standards Agency,Food Standards Agency,29/07/2015,IT Software Licences,IT Service Delivery,Trustmarque Solutions Ltd,2231943,"7,913.50",MICROSOFT LICENSING ENTERPRISE AGREEMENT,YO32 9GZ,Admin
Food Standards Agency,Food Standards Agency,07/07/2015,IT Software Licences,IT Service Delivery,Trustmarque Solutions Ltd,2231745,"7,404.00",MICROSOFT LICENSING ENTERPRISE AGREEMENT,YO32 9GZ,Admin
Food Standards Agency,Food Standards Agency,29/07/2015,IT Software Licences,IT Service Delivery,Trustmarque Solutions Ltd,2231943,"7,404.00",MICROSOFT LICENSING ENTERPRISE AGREEMENT,YO32 9GZ,Admin
Food Standards Agency,Food Standards Agency,31/07/2015,Project Programme expenditure,Chemical Risk Assessment Unit,Fera Science Limited,6138002474,"7,138.33",PO 414124 FSA PROJECT CODE FS616030 APRIL -JUN 2015,YO41 1LZ,Programme
Food Standards Agency,Food Standards Agency,27/07/2015,IT Development projects,IT Strategy,Microsoft Ltd,9620823773,"6,753.50",PO 422403 REMITTING PAYMENT,RG6 1WG,Admin
Food Standards Agency,Food Standards Agency,27/07/2015,IT Development projects,IT Strategy,Microsoft Ltd,9620823773,"6,753.50",PO 422403 REMITTING PAYMENT,RG6 1WG,Admin
Food Standards Agency,Food Standards Agency,28/07/2015,Project Programme expenditure,Animal Feed     ,Trading Standards Institute (GRANTS),ERS-42078-52619,"6,750.00",Feed Off. Conts 2015/16 NTS Prog fees Q2. Feed Official Controls funding 2015/16: NTS Programme Office fees (Q2).,SS15 6TH,Programme
Food Standards Agency,Food Standards Agency,07/07/2015,IT Software Licences,IT Service Delivery,Trustmarque Solutions Ltd,2231745,"6,745.00",MICROSOFT LICENSING ENTERPRISE AGREEMENT,YO32 9GZ,Admin
Food Standards Agency,Food Standards Agency,29/07/2015,IT Software Licences,IT Service Delivery,Trustmarque Solutions Ltd,2231943,"6,745.00",MICROSOFT LICENSING ENTERPRISE AGREEMENT,YO32 9GZ,Admin
Food Standards Agency,Food Standards Agency,15/07/2015,Telecomms-data networks & call charges,IT Service Delivery,Vodafone Ltd,UK100720154622,"6,453.55",VODAFONE QUARTERLY NETWORK CHARGE (PUBLIC SECTOR NETWORK),RG14 5FF,Admin
Food Standards Agency,Food Standards Agency,17/07/2015,IT Software Licences,IT Service Delivery,Trustmarque Solutions Ltd,2231742,"6,385.20",MICROSOFT LICENSING ENTERPRISE AGREEMENT,YO32 9GZ,Admin
Food Standards Agency,Food Standards Agency,17/07/2015,IT Software Licences,IT Service Delivery,Trustmarque Solutions Ltd,2231742,"6,385.20",MICROSOFT LICENSING ENTERPRISE AGREEMENT,YO32 9GZ,Admin
Food Standards Agency,Food Standards Agency,29/07/2015,IT Software Licences,IT Service Delivery,Trustmarque Solutions Ltd,2231742,"6,385.20",MICROSOFT LICENSING ENTERPRISE AGREEMENT,YO32 9GZ,Admin
Food Standards Agency,Food Standards Agency,23/07/2015,Fixed Assets Additions,Operations Assurance,Capita Secure Information Solutions Ltd,6060003438,"6,036.19",PO 422577 APRIL 2015,SN14 0TW,Capital
Food Standards Agency,Food Standards Agency,07/07/2015,IT Software Licences,IT Service Delivery,Trustmarque Solutions Ltd,2231745,"5,722.50",MICROSOFT LICENSING ENTERPRISE AGREEMENT,YO32 9GZ,Admin
Food Standards Agency,Food Standards Agency,29/07/2015,IT Software Licences,IT Service Delivery,Trustmarque Solutions Ltd,2231943,"5,722.50",MICROSOFT LICENSING ENTERPRISE AGREEMENT,YO32 9GZ,Admin
Food Standards Agency,Food Standards Agency,23/07/2015,IT Development projects,Operations Assurance,Capita Secure Information Solutions Ltd,6060003438,"5,718.38",PO 422577 APRIL 2015,SN14 0TW,Programme
Food Standards Agency,Food Standards Agency,17/07/2015,Utilities,Security & Estates,E D F Energy,536646,"5,656.68",EDF INV 536646 AVH ELECTRICITY CHARGES - JUNE 15,EX1 3UT,Admin
Food Standards Agency,Food Standards Agency,09/07/2015,Laundry,Operational Delivery,Apparelmaster UK Ltd,61684,"5,052.50",PO 421794 REGION 546 - NEW CONTRACT,PR2 9ZD,Programme
Food Standards Agency,Food Standards Agency,03/07/2015,IT equipment maintenance,IT Service Delivery,Capita Secure Information Solutions Ltd,6060004281,"4,897.20",CAPITA CONTRACT MILESTONE PAYMENT,SN14 0TW,Admin
Food Standards Agency,Food Standards Agency,27/07/2015,IT Development projects,IT Strategy,Microsoft Ltd,9620823773,"4,502.33",PO 422403 REMITTING PAYMENT,RG6 1WG,Admin
Food Standards Agency,Food Standards Agency,27/07/2015,IT Development projects,IT Strategy,Microsoft Ltd,9620823773,"4,502.33",PO 422403 REMITTING PAYMENT,RG6 1WG,Admin
Food Standards Agency,Food Standards Agency,31/07/2015,Project Programme expenditure,Contaminants Policy & Strategy Unit,Fera Science Limited,6138002432,"4,467.16","PO 421518,DETERMINATION OF MASKED MYCOTOXIN IN CEREAL, FS102101, 30/06/15",YO41 1LZ,Programme
Food Standards Agency,Food Standards Agency,21/07/2015,ASD support services,Finance Director & Branch,Shared Services Connected Ltd,100001235,"4,408.92","PO 419996, FIXED MONTHLY CHARGE, JULY 2015",HP2 7AH,Admin
Food Standards Agency,Food Standards Agency,07/07/2015,IT Software Licences,IT Service Delivery,Trustmarque Solutions Ltd,2231745,"4,340.80",MICROSOFT LICENSING ENTERPRISE AGREEMENT,YO32 9GZ,Admin
Food Standards Agency,Food Standards Agency,29/07/2015,IT Software Licences,IT Service Delivery,Trustmarque Solutions Ltd,2231943,"4,340.80",MICROSOFT LICENSING ENTERPRISE AGREEMENT,YO32 9GZ,Admin
Food Standards Agency,Food Standards Agency,21/07/2015,Subsistence UK,Operations Local Delivery ,Redfern Travel Ltd,212,"4,258.51",REDFERN TRAVEL INVOICE WK 28,BD1 3AZ,Admin
Food Standards Agency,Food Standards Agency,29/07/2015,Project Programme expenditure,Chief Scientist,Veraz Ltd,FSAGBS009,"3,511.00",PO 414139 REATAINED 20%,LA1 4XF,Programme
Food Standards Agency,Food Standards Agency,07/07/2015,IT Software Licences,IT Service Delivery,Trustmarque Solutions Ltd,2231745,"3,465.46",MICROSOFT LICENSING ENTERPRISE AGREEMENT,YO32 9GZ,Admin
Food Standards Agency,Food Standards Agency,29/07/2015,IT Software Licences,IT Service Delivery,Trustmarque Solutions Ltd,2231943,"3,465.46",MICROSOFT LICENSING ENTERPRISE AGREEMENT,YO32 9GZ,Admin
Food Standards Agency,Food Standards Agency,27/07/2015,Programme Evidence & Research Expenditure,Contaminants HoD,C E F A S,8004937,"3,310.20",PO 418176 C6133 INVOICE FOR THE PERIOD APRIL 2015,NR33 0HT,Programme
Food Standards Agency,Food Standards Agency,27/07/2015,Programme Evidence & Research Expenditure,Contaminants HoD,C E F A S,8004937,"3,310.20",PO 418176 C6133 INVOICE FOR THE PERIOD APRIL 2015,NR33 0HT,Programme
Food Standards Agency,Food Standards Agency,03/07/2015,Security,Security & Estates,G4s Integrated Services (Uk) Ltd,90028645,"3,306.53",G4S MONTHLY JUNE 2015 - VAT SECURITY,S81 7QF,Admin
Food Standards Agency,Food Standards Agency,27/07/2015,Security,Security & Estates,G4s Integrated Services (Uk) Ltd,90037098,"3,306.53",G4S MONTHLY JULY 2015 - VAT SECURITY,S81 7QF,Admin
Food Standards Agency,Food Standards Agency,07/07/2015,IT Software Licences,IT Service Delivery,Trustmarque Solutions Ltd,2231745,"3,177.00",MICROSOFT LICENSING ENTERPRISE AGREEMENT,YO32 9GZ,Admin
Food Standards Agency,Food Standards Agency,29/07/2015,IT Software Licences,IT Service Delivery,Trustmarque Solutions Ltd,2231943,"3,177.00",MICROSOFT LICENSING ENTERPRISE AGREEMENT,YO32 9GZ,Admin
Food Standards Agency,Food Standards Agency,07/07/2015,IT Software Licences,IT Service Delivery,Trustmarque Solutions Ltd,2231745,"3,030.00",MICROSOFT LICENSING ENTERPRISE AGREEMENT,YO32 9GZ,Admin
Food Standards Agency,Food Standards Agency,29/07/2015,IT Software Licences,IT Service Delivery,Trustmarque Solutions Ltd,2231943,"3,030.00",MICROSOFT LICENSING ENTERPRISE AGREEMENT,YO32 9GZ,Admin
Food Standards Agency,Food Standards Agency,07/07/2015,IT Software Licences,IT Service Delivery,Trustmarque Solutions Ltd,2231745,"2,973.50",MICROSOFT LICENSING ENTERPRISE AGREEMENT,YO32 9GZ,Admin
Food Standards Agency,Food Standards Agency,29/07/2015,IT Software Licences,IT Service Delivery,Trustmarque Solutions Ltd,2231943,"2,973.50",MICROSOFT LICENSING ENTERPRISE AGREEMENT,YO32 9GZ,Admin
Food Standards Agency,Food Standards Agency,01/07/2015,Travel UK ,Operational Delivery,Redfern Travel Ltd,171,"2,912.91",REDFERN TRAVEL INVOICE WK 25,BD1 3AZ,Programme
Food Standards Agency,Food Standards Agency,17/07/2015,IT Software Licences,IT Service Delivery,Trustmarque Solutions Ltd,2231742,"2,685.31",MICROSOFT LICENSING ENTERPRISE AGREEMENT,YO32 9GZ,Admin
Food Standards Agency,Food Standards Agency,17/07/2015,IT Software Licences,IT Service Delivery,Trustmarque Solutions Ltd,2231742,"2,685.31",MICROSOFT LICENSING ENTERPRISE AGREEMENT,YO32 9GZ,Admin
Food Standards Agency,Food Standards Agency,29/07/2015,IT Software Licences,IT Service Delivery,Trustmarque Solutions Ltd,2231742,"2,685.31",MICROSOFT LICENSING ENTERPRISE AGREEMENT,YO32 9GZ,Admin
Food Standards Agency,Food Standards Agency,21/07/2015,Travel UK ,Operational Delivery,Redfern Travel Ltd,212,"2,662.44",REDFERN TRAVEL INVOICE WK 28,BD1 3AZ,Programme
Food Standards Agency,Food Standards Agency,17/07/2015,IT Software Licences,IT Service Delivery,Trustmarque Solutions Ltd,2231742,"2,573.28",MICROSOFT LICENSING ENTERPRISE AGREEMENT,YO32 9GZ,Admin
Food Standards Agency,Food Standards Agency,17/07/2015,IT Software Licences,IT Service Delivery,Trustmarque Solutions Ltd,2231742,"2,573.28",MICROSOFT LICENSING ENTERPRISE AGREEMENT,YO32 9GZ,Admin
Food Standards Agency,Food Standards Agency,29/07/2015,IT Software Licences,IT Service Delivery,Trustmarque Solutions Ltd,2231742,"2,573.28",MICROSOFT LICENSING ENTERPRISE AGREEMENT,YO32 9GZ,Admin
Food Standards Agency,Food Standards Agency,27/07/2015,Project Programme expenditure,Contaminants HoD,C E F A S,8004942,"2,237.56",PO 418529 C6134 AD HOC MONITORING STAKEHOLDER EHWG MEETING SELLAFIELD,NR33 0HT,Programme
Food Standards Agency,Food Standards Agency,07/07/2015,Travel UK ,Finance Director & Branch,Redfern Travel Ltd,193,"2,208.82",REDFERN TRAVEL INVOICE WEEK 26,BD1 3AZ,Admin
Food Standards Agency,Food Standards Agency,27/07/2015,Travel UK ,Operational Delivery,Redfern Travel Ltd,219,"2,039.56",REDFERN TRAVEL INVOICE WK 29,BD1 3AZ,Programme
Food Standards Agency,Food Standards Agency,21/07/2015,Subsistence UK,Operational Delivery,Redfern Travel Ltd,212,"2,006.24",REDFERN TRAVEL INVOICE WK 28,BD1 3AZ,Programme
Food Standards Agency,Food Standards Agency,27/07/2015,Travel UK ,Operations Assurance,Redfern Travel Ltd,219,"1,848.28",REDFERN TRAVEL INVOICE WK 29,BD1 3AZ,Programme
Food Standards Agency,Food Standards Agency,01/07/2015,Travel UK ,Finance Director & Branch,Redfern Travel Ltd,171,"1,804.44",REDFERN TRAVEL INVOICE WK 25,BD1 3AZ,Admin
Food Standards Agency,Food Standards Agency,21/07/2015,Travel UK ,Planning and Performance,Redfern Travel Ltd,212,"1,733.09",REDFERN TRAVEL INVOICE WK 28,BD1 3AZ,Admin
Food Standards Agency,Food Standards Agency,07/07/2015,IT Software Licences,IT Service Delivery,Trustmarque Solutions Ltd,2231745,"1,710.00",MICROSOFT LICENSING ENTERPRISE AGREEMENT,YO32 9GZ,Admin
Food Standards Agency,Food Standards Agency,29/07/2015,IT Software Licences,IT Service Delivery,Trustmarque Solutions Ltd,2231943,"1,710.00",MICROSOFT LICENSING ENTERPRISE AGREEMENT,YO32 9GZ,Admin
Food Standards Agency,Food Standards Agency,07/07/2015,Travel UK ,Operational Delivery,Redfern Travel Ltd,193,"1,663.97",REDFERN TRAVEL INVOICE WEEK 26,BD1 3AZ,Programme
Food Standards Agency,Food Standards Agency,21/07/2015,Subsistence UK,Non Meat Field Ops,Redfern Travel Ltd,212,"1,662.30",REDFERN TRAVEL INVOICE WK 28,BD1 3AZ,Programme
Food Standards Agency,Food Standards Agency,01/07/2015,Subsistence UK,Operational Delivery,Redfern Travel Ltd,171,"1,599.97",REDFERN TRAVEL INVOICE WK 25,BD1 3AZ,Programme
Food Standards Agency,Food Standards Agency,21/07/2015,Travel UK ,Operations Assurance,Redfern Travel Ltd,212,"1,592.98",REDFERN TRAVEL INVOICE WK 28,BD1 3AZ,Programme
Food Standards Agency,Food Standards Agency,28/07/2015,Project Programme expenditure,Animal Feed     ,Trading Standards Institute (GRANTS),ERS-42078-52619,"1,548.00",Feed Off. Conts 2015/16 NTS Prog fees Q2. Feed Official Controls funding 2015/16: NTS Programme Office fees (Q2).,SS15 6TH,Programme
Food Standards Agency,Food Standards Agency,07/07/2015,IT Software Licences,IT Service Delivery,Trustmarque Solutions Ltd,2231745,"1,513.56",MICROSOFT LICENSING ENTERPRISE AGREEMENT,YO32 9GZ,Admin
Food Standards Agency,Food Standards Agency,29/07/2015,IT Software Licences,IT Service Delivery,Trustmarque Solutions Ltd,2231943,"1,513.56",MICROSOFT LICENSING ENTERPRISE AGREEMENT,YO32 9GZ,Admin
Food Standards Agency,Food Standards Agency,01/07/2015,Travel UK ,Planning and Performance,Redfern Travel Ltd,171,"1,506.78",REDFERN TRAVEL INVOICE WK 25,BD1 3AZ,Admin
Food Standards Agency,Food Standards Agency,27/07/2015,Travel UK ,Finance Director & Branch,Redfern Travel Ltd,219,"1,494.00",REDFERN TRAVEL INVOICE WK 29,BD1 3AZ,Admin
Food Standards Agency,Food Standards Agency,01/07/2015,Subsistence UK,Planning and Performance,Redfern Travel Ltd,171,"1,471.90",REDFERN TRAVEL INVOICE WK 25,BD1 3AZ,Admin
Food Standards Agency,Food Standards Agency,07/07/2015,Travel UK ,Operations Assurance,Redfern Travel Ltd,193,"1,459.78",REDFERN TRAVEL INVOICE WEEK 26,BD1 3AZ,Programme
Food Standards Agency,Food Standards Agency,07/07/2015,Project Programme expenditure,Analysis & Research Branch,T N S Uk Ltd,260150669,"1,399.00",PO 417550 COUNTRY ANALYSIS & REPORTING,W5 1UA,Programme
Food Standards Agency,Food Standards Agency,07/07/2015,Travel UK ,Operations Local Delivery ,Redfern Travel Ltd,193,"1,394.22",REDFERN TRAVEL INVOICE WEEK 26,BD1 3AZ,Admin
Food Standards Agency,Food Standards Agency,27/07/2015,Travel UK ,Operations Local Delivery ,Redfern Travel Ltd,219,"1,377.43",REDFERN TRAVEL INVOICE WK 29,BD1 3AZ,Admin
Food Standards Agency,Food Standards Agency,27/07/2015,Travel UK ,Organisational Development,Redfern Travel Ltd,219,"1,375.15",REDFERN TRAVEL INVOICE WK 29,BD1 3AZ,Admin
Food Standards Agency,Food Standards Agency,01/07/2015,Subsistence UK,Operations Assurance,Redfern Travel Ltd,171,"1,371.75",REDFERN TRAVEL INVOICE WK 25,BD1 3AZ,Programme
Food Standards Agency,Food Standards Agency,21/07/2015,Subsistence UK,Operations Assurance,Redfern Travel Ltd,212,"1,338.19",REDFERN TRAVEL INVOICE WK 28,BD1 3AZ,Programme
Food Standards Agency,Food Standards Agency,21/07/2015,Travel UK ,Operations Local Delivery ,Redfern Travel Ltd,212,"1,289.37",REDFERN TRAVEL INVOICE WK 28,BD1 3AZ,Admin
Food Standards Agency,Food Standards Agency,17/07/2015,IT Software Licences,IT Service Delivery,Trustmarque Solutions Ltd,2231742,"1,277.04",MICROSOFT LICENSING ENTERPRISE AGREEMENT,YO32 9GZ,Admin
Food Standards Agency,Food Standards Agency,17/07/2015,IT Software Licences,IT Service Delivery,Trustmarque Solutions Ltd,2231742,"1,277.04",MICROSOFT LICENSING ENTERPRISE AGREEMENT,YO32 9GZ,Admin
Food Standards Agency,Food Standards Agency,29/07/2015,IT Software Licences,IT Service Delivery,Trustmarque Solutions Ltd,2231742,"1,277.04",MICROSOFT LICENSING ENTERPRISE AGREEMENT,YO32 9GZ,Admin
Food Standards Agency,Food Standards Agency,07/07/2015,Travel UK ,Consumer Protection & Commercial Support,Redfern Travel Ltd,193,"1,247.03",REDFERN TRAVEL INVOICE WEEK 26,BD1 3AZ,Admin
Food Standards Agency,Food Standards Agency,07/07/2015,Travel UK ,Operations Assurance - Admin,Redfern Travel Ltd,193,"1,178.12",REDFERN TRAVEL INVOICE WEEK 26,BD1 3AZ,Admin
Food Standards Agency,Food Standards Agency,07/07/2015,Travel UK ,Organisational Development,Redfern Travel Ltd,193,"1,158.72",REDFERN TRAVEL INVOICE WEEK 26,BD1 3AZ,Admin
Food Standards Agency,Food Standards Agency,07/07/2015,IT Software Licences,IT Service Delivery,Trustmarque Solutions Ltd,2231745,"1,144.50",MICROSOFT LICENSING ENTERPRISE AGREEMENT,YO32 9GZ,Admin
Food Standards Agency,Food Standards Agency,29/07/2015,IT Software Licences,IT Service Delivery,Trustmarque Solutions Ltd,2231943,"1,144.50",MICROSOFT LICENSING ENTERPRISE AGREEMENT,YO32 9GZ,Admin
Food Standards Agency,Food Standards Agency,23/07/2015,IT Development projects,Operations Assurance,Capita Secure Information Solutions Ltd,6060003438,"1,143.68",PO 422577 APRIL 2015,SN14 0TW,Programme
Food Standards Agency,Food Standards Agency,21/07/2015,Travel UK ,Organisational Development,Redfern Travel Ltd,212,"1,134.95",REDFERN TRAVEL INVOICE WK 28,BD1 3AZ,Admin
Food Standards Agency,Food Standards Agency,01/07/2015,Travel UK ,Consumer Protection & Commercial Support,Redfern Travel Ltd,171,"1,128.89",REDFERN TRAVEL INVOICE WK 25,BD1 3AZ,Admin
Food Standards Agency,Food Standards Agency,01/07/2015,Travel UK ,Operations Assurance,Redfern Travel Ltd,171,"1,111.80",REDFERN TRAVEL INVOICE WK 25,BD1 3AZ,Programme
Food Standards Agency,Food Standards Agency,01/07/2015,Subsistence EC,Contaminants HoD,Redfern Travel Ltd,171,"1,094.86",REDFERN TRAVEL INVOICE WK 25,BD1 3AZ,Admin
Food Standards Agency,Food Standards Agency,07/07/2015,Subsistence UK,Operational Delivery,Redfern Travel Ltd,193,"1,044.30",REDFERN TRAVEL INVOICE WEEK 26,BD1 3AZ,Programme
Food Standards Agency,Food Standards Agency,27/07/2015,Subsistence UK,Operations Assurance,Redfern Travel Ltd,219,"1,000.18",REDFERN TRAVEL INVOICE WK 29,BD1 3AZ,Programme
Food Standards Agency,Food Standards Agency,01/07/2015,Travel UK ,Operations Assurance - Admin,Redfern Travel Ltd,171,868.74,REDFERN TRAVEL INVOICE WK 25,BD1 3AZ,Admin
Food Standards Agency,Food Standards Agency,07/07/2015,IT Software Licences,IT Service Delivery,Trustmarque Solutions Ltd,2231745,868.16,MICROSOFT LICENSING ENTERPRISE AGREEMENT,YO32 9GZ,Admin
Food Standards Agency,Food Standards Agency,29/07/2015,IT Software Licences,IT Service Delivery,Trustmarque Solutions Ltd,2231943,868.16,MICROSOFT LICENSING ENTERPRISE AGREEMENT,YO32 9GZ,Admin
Food Standards Agency,Food Standards Agency,27/07/2015,Subsistence UK,Contaminants HoD,Redfern Travel Ltd,219,815.17,REDFERN TRAVEL INVOICE WK 29,BD1 3AZ,Admin
Food Standards Agency,Food Standards Agency,07/07/2015,Travel UK ,Area 6 South East England - Cluster 62,Redfern Travel Ltd,193,808.96,REDFERN TRAVEL INVOICE WEEK 26,BD1 3AZ,Programme
Food Standards Agency,Food Standards Agency,27/07/2015,Travel UK ,Consumer Protection & Commercial Support,Redfern Travel Ltd,219,790.23,REDFERN TRAVEL INVOICE WK 29,BD1 3AZ,Admin
Food Standards Agency,Food Standards Agency,21/07/2015,Travel UK ,Finance Director & Branch,Redfern Travel Ltd,212,783.35,REDFERN TRAVEL INVOICE WK 28,BD1 3AZ,Admin
Food Standards Agency,Food Standards Agency,07/07/2015,IT Software Licences,IT Service Delivery,Trustmarque Solutions Ltd,2231745,756.84,MICROSOFT LICENSING ENTERPRISE AGREEMENT,YO32 9GZ,Admin
Food Standards Agency,Food Standards Agency,29/07/2015,IT Software Licences,IT Service Delivery,Trustmarque Solutions Ltd,2231943,756.84,MICROSOFT LICENSING ENTERPRISE AGREEMENT,YO32 9GZ,Admin
Food Standards Agency,Food Standards Agency,27/07/2015,Travel UK ,Regulatory & International,Redfern Travel Ltd,219,742.65,REDFERN TRAVEL INVOICE WK 29,BD1 3AZ,Admin
Food Standards Agency,Food Standards Agency,07/07/2015,Travel UK ,Planning and Performance,Redfern Travel Ltd,193,724.67,REDFERN TRAVEL INVOICE WEEK 26,BD1 3AZ,Admin
Food Standards Agency,Food Standards Agency,07/07/2015,Subsistence UK,Operations Assurance - Admin,Redfern Travel Ltd,193,697.23,REDFERN TRAVEL INVOICE WEEK 26,BD1 3AZ,Admin
Food Standards Agency,Food Standards Agency,01/07/2015,Subsistence UK,Internal Audit,Redfern Travel Ltd,171,666.8,REDFERN TRAVEL INVOICE WK 25,BD1 3AZ,Admin
Food Standards Agency,Food Standards Agency,27/07/2015,Travel UK ,Chair & Deputy Chair,Redfern Travel Ltd,219,654.98,REDFERN TRAVEL INVOICE WK 29,BD1 3AZ,Admin
Food Standards Agency,Food Standards Agency,07/07/2015,IT Software Licences,IT Service Delivery,Trustmarque Solutions Ltd,2231745,653.03,MICROSOFT LICENSING ENTERPRISE AGREEMENT,YO32 9GZ,Admin
Food Standards Agency,Food Standards Agency,29/07/2015,IT Software Licences,IT Service Delivery,Trustmarque Solutions Ltd,2231943,653.03,MICROSOFT LICENSING ENTERPRISE AGREEMENT,YO32 9GZ,Admin
Food Standards Agency,Food Standards Agency,07/07/2015,IT Software Licences,IT Service Delivery,Trustmarque Solutions Ltd,2231745,635.4,MICROSOFT LICENSING ENTERPRISE AGREEMENT,YO32 9GZ,Admin
Food Standards Agency,Food Standards Agency,29/07/2015,IT Software Licences,IT Service Delivery,Trustmarque Solutions Ltd,2231943,635.4,MICROSOFT LICENSING ENTERPRISE AGREEMENT,YO32 9GZ,Admin
Food Standards Agency,Food Standards Agency,07/07/2015,IT Software Licences,IT Service Delivery,Trustmarque Solutions Ltd,2231745,606,MICROSOFT LICENSING ENTERPRISE AGREEMENT,YO32 9GZ,Admin
Food Standards Agency,Food Standards Agency,29/07/2015,IT Software Licences,IT Service Delivery,Trustmarque Solutions Ltd,2231943,606,MICROSOFT LICENSING ENTERPRISE AGREEMENT,YO32 9GZ,Admin
Food Standards Agency,Food Standards Agency,01/07/2015,Subsistence EC,Food Hygiene Policy Branch,Redfern Travel Ltd,171,603.48,REDFERN TRAVEL INVOICE WK 25,BD1 3AZ,Admin
Food Standards Agency,Food Standards Agency,27/07/2015,Travel UK ,Legal Branch A & Investigations,Redfern Travel Ltd,219,594.78,REDFERN TRAVEL INVOICE WK 29,BD1 3AZ,Admin
Food Standards Agency,Food Standards Agency,27/07/2015,Travel UK ,Directorate Support Unit,Redfern Travel Ltd,219,592.94,REDFERN TRAVEL INVOICE WK 29,BD1 3AZ,Admin
Food Standards Agency,Food Standards Agency,27/07/2015,Travel UK ,Planning and Performance,Redfern Travel Ltd,219,591.47,REDFERN TRAVEL INVOICE WK 29,BD1 3AZ,Admin
Food Standards Agency,Food Standards Agency,27/07/2015,Travel UK ,IT Information & Knowledge Management,Redfern Travel Ltd,219,587.05,REDFERN TRAVEL INVOICE WK 29,BD1 3AZ,Admin
Food Standards Agency,Food Standards Agency,27/07/2015,Travel UK ,Area 6 South East England - Cluster 61,Redfern Travel Ltd,219,583.09,REDFERN TRAVEL INVOICE WK 29,BD1 3AZ,Programme
Food Standards Agency,Food Standards Agency,27/07/2015,Subsistence UK,Operations Local Delivery ,Redfern Travel Ltd,219,578.3,REDFERN TRAVEL INVOICE WK 29,BD1 3AZ,Admin
Food Standards Agency,Food Standards Agency,27/07/2015,Travel UK ,Procurement,Redfern Travel Ltd,219,564.64,REDFERN TRAVEL INVOICE WK 29,BD1 3AZ,Admin
Food Standards Agency,Food Standards Agency,27/07/2015,Subsistence UK,Chair & Deputy Chair,Redfern Travel Ltd,219,561.6,REDFERN TRAVEL INVOICE WK 29,BD1 3AZ,Admin
Food Standards Agency,Food Standards Agency,07/07/2015,Travel UK ,Chemical Risk Assessment Unit,Redfern Travel Ltd,193,539.06,REDFERN TRAVEL INVOICE WEEK 26,BD1 3AZ,Admin
Food Standards Agency,Food Standards Agency,01/07/2015,Subsistence UK,Contaminants Policy & Strategy Unit,Redfern Travel Ltd,171,531.08,REDFERN TRAVEL INVOICE WK 25,BD1 3AZ,Admin
Food Standards Agency,Food Standards Agency,27/07/2015,Travel UK ,Area 6 South East England - Cluster 63,Redfern Travel Ltd,219,518.71,REDFERN TRAVEL INVOICE WK 29,BD1 3AZ,Programme
Food Standards Agency,Food Standards Agency,07/07/2015,Travel UK ,Animal Feed     ,Redfern Travel Ltd,193,495.43,REDFERN TRAVEL INVOICE WEEK 26,BD1 3AZ,Admin
Food Standards Agency,Food Standards Agency,01/07/2015,Travel UK ,Organisational Development,Redfern Travel Ltd,171,483.67,REDFERN TRAVEL INVOICE WK 25,BD1 3AZ,Admin
Food Standards Agency,Food Standards Agency,01/07/2015,Travel UK ,Operations Local Delivery ,Redfern Travel Ltd,171,477.6,REDFERN TRAVEL INVOICE WK 25,BD1 3AZ,Admin
Food Standards Agency,Food Standards Agency,27/07/2015,Subsistence UK,Operational Delivery,Redfern Travel Ltd,219,476.72,REDFERN TRAVEL INVOICE WK 29,BD1 3AZ,Programme
Food Standards Agency,Food Standards Agency,27/07/2015,Travel UK ,Internal Audit,Redfern Travel Ltd,219,475.58,REDFERN TRAVEL INVOICE WK 29,BD1 3AZ,Admin
Food Standards Agency,Food Standards Agency,01/07/2015,Subsistence UK,Area 5 South West England - Cluster 57,Redfern Travel Ltd,171,475.07,REDFERN TRAVEL INVOICE WK 25,BD1 3AZ,Programme
Food Standards Agency,Food Standards Agency,07/07/2015,Travel UK ,Directorate Support Unit,Redfern Travel Ltd,193,466.99,REDFERN TRAVEL INVOICE WEEK 26,BD1 3AZ,Admin
Food Standards Agency,Food Standards Agency,01/07/2015,Travel UK ,Area 5 South West England - Cluster 57,Redfern Travel Ltd,171,466.19,REDFERN TRAVEL INVOICE WK 25,BD1 3AZ,Programme
Food Standards Agency,Food Standards Agency,21/07/2015,Subsistence UK,Area 2 Wales - Cluster 23,Redfern Travel Ltd,212,461.2,REDFERN TRAVEL INVOICE WK 28,BD1 3AZ,Programme
Food Standards Agency,Food Standards Agency,01/07/2015,Travel UK ,Additives,Redfern Travel Ltd,171,459.34,REDFERN TRAVEL INVOICE WK 25,BD1 3AZ,Admin
Food Standards Agency,Food Standards Agency,01/07/2015,Subsistence EC,Contaminants Policy & Strategy Unit,Redfern Travel Ltd,171,457.26,REDFERN TRAVEL INVOICE WK 25,BD1 3AZ,Admin
Food Standards Agency,Food Standards Agency,07/07/2015,Travel UK ,Animal Feed Branch,Redfern Travel Ltd,193,453.51,REDFERN TRAVEL INVOICE WEEK 26,BD1 3AZ,Admin
Food Standards Agency,Food Standards Agency,21/07/2015,Travel UK ,Operations Assurance - Admin,Redfern Travel Ltd,212,450.47,REDFERN TRAVEL INVOICE WK 28,BD1 3AZ,Admin
Food Standards Agency,Food Standards Agency,01/07/2015,Subsistence EC,Additives,Redfern Travel Ltd,171,446.54,REDFERN TRAVEL INVOICE WK 25,BD1 3AZ,Admin
Food Standards Agency,Food Standards Agency,01/07/2015,Travel UK ,Regulatory & International,Redfern Travel Ltd,171,441.67,REDFERN TRAVEL INVOICE WK 25,BD1 3AZ,Admin
Food Standards Agency,Food Standards Agency,07/07/2015,Subsistence UK,Operations Assurance,Redfern Travel Ltd,193,437.1,REDFERN TRAVEL INVOICE WEEK 26,BD1 3AZ,Programme
Food Standards Agency,Food Standards Agency,27/07/2015,Subsistence EC,Analysis & Research Branch,Redfern Travel Ltd,219,419.8,REDFERN TRAVEL INVOICE WK 29,BD1 3AZ,Admin
Food Standards Agency,Food Standards Agency,27/07/2015,Subsistence UK,Chief Scientist,Redfern Travel Ltd,219,415.56,REDFERN TRAVEL INVOICE WK 29,BD1 3AZ,Admin
Food Standards Agency,Food Standards Agency,27/07/2015,Subsistence UK,Directorate Support Unit,Redfern Travel Ltd,219,411.84,REDFERN TRAVEL INVOICE WK 29,BD1 3AZ,Admin
Food Standards Agency,Food Standards Agency,27/07/2015,Travel UK ,IT Service Delivery,Redfern Travel Ltd,219,408.88,WEEKLY TRAVEL INVOICE,BD1 3AZ,Admin
Food Standards Agency,Food Standards Agency,21/07/2015,Travel UK ,Consumer Protection & Commercial Support,Redfern Travel Ltd,212,400.19,REDFERN TRAVEL INVOICE WK 28,BD1 3AZ,Admin
Food Standards Agency,Food Standards Agency,27/07/2015,Subsistence UK,Planning and Performance,Redfern Travel Ltd,219,397.25,REDFERN TRAVEL INVOICE WK 29,BD1 3AZ,Admin
Food Standards Agency,Food Standards Agency,07/07/2015,Travel UK ,Internal Audit,Redfern Travel Ltd,193,396.54,REDFERN TRAVEL INVOICE WEEK 26,BD1 3AZ,Admin
Food Standards Agency,Food Standards Agency,07/07/2015,Subsistence UK,Planning and Performance,Redfern Travel Ltd,193,393.8,REDFERN TRAVEL INVOICE WEEK 26,BD1 3AZ,Admin
Food Standards Agency,Food Standards Agency,01/07/2015,Travel UK ,Area 6 South East England - Cluster 64,Redfern Travel Ltd,171,386.14,REDFERN TRAVEL INVOICE WK 25,BD1 3AZ,Programme
Food Standards Agency,Food Standards Agency,01/07/2015,Travel UK ,Chief Scientist,Redfern Travel Ltd,171,383.58,REDFERN TRAVEL INVOICE WK 25,BD1 3AZ,Admin
Food Standards Agency,Food Standards Agency,07/07/2015,Travel UK ,Area 6 South East England - Cluster 66,Redfern Travel Ltd,193,368.25,REDFERN TRAVEL INVOICE WEEK 26,BD1 3AZ,Programme
Food Standards Agency,Food Standards Agency,07/07/2015,Travel UK ,Food Production Branch,Redfern Travel Ltd,193,367.04,REDFERN TRAVEL INVOICE WEEK 26,BD1 3AZ,Admin
Food Standards Agency,Food Standards Agency,01/07/2015,Travel UK ,Food Hygiene Policy Branch,Redfern Travel Ltd,171,365.72,REDFERN TRAVEL INVOICE WK 25,BD1 3AZ,Admin
Food Standards Agency,Food Standards Agency,27/07/2015,Travel UK ,Contaminants HoD,Redfern Travel Ltd,219,358.43,REDFERN TRAVEL INVOICE WK 29,BD1 3AZ,Admin
Food Standards Agency,Food Standards Agency,01/07/2015,Travel UK ,Chemical Risk Assessment Unit,Redfern Travel Ltd,171,347.41,REDFERN TRAVEL INVOICE WK 25,BD1 3AZ,Admin
Food Standards Agency,Food Standards Agency,07/07/2015,Travel UK ,Regulatory & International,Redfern Travel Ltd,193,337.88,REDFERN TRAVEL INVOICE WEEK 26,BD1 3AZ,Admin
Food Standards Agency,Food Standards Agency,01/07/2015,Travel UK ,Area 6 South East England - Cluster 63,Redfern Travel Ltd,171,331.31,REDFERN TRAVEL INVOICE WK 25,BD1 3AZ,Programme
Food Standards Agency,Food Standards Agency,01/07/2015,Subsistence UK,Chief Scientist,Redfern Travel Ltd,171,329.16,REDFERN TRAVEL INVOICE WK 25,BD1 3AZ,Admin
Food Standards Agency,Food Standards Agency,27/07/2015,Travel UK ,Information Strategy & Implementation Programme,Redfern Travel Ltd,219,323.57,REDFERN TRAVEL INVOICE WK 29,BD1 3AZ,Admin
Food Standards Agency,Food Standards Agency,01/07/2015,Subsistence UK,Area 5 South West England - Cluster 51,Redfern Travel Ltd,171,318.47,REDFERN TRAVEL INVOICE WK 25,BD1 3AZ,Programme
Food Standards Agency,Food Standards Agency,01/07/2015,Subsistence UK,Consumer Protection & Commercial Support,Redfern Travel Ltd,171,317.84,REDFERN TRAVEL INVOICE WK 25,BD1 3AZ,Admin
Food Standards Agency,Food Standards Agency,01/07/2015,Travel UK ,Procurement,Redfern Travel Ltd,171,305.67,REDFERN TRAVEL INVOICE WK 25,BD1 3AZ,Admin
Food Standards Agency,Food Standards Agency,21/07/2015,Travel UK ,Information Strategy & Implementation Programme,Redfern Travel Ltd,212,305.57,REDFERN TRAVEL INVOICE WK 28,BD1 3AZ,Admin
Food Standards Agency,Food Standards Agency,07/07/2015,IT Software Licences,IT Service Delivery,Trustmarque Solutions Ltd,2231745,302.71,MICROSOFT LICENSING ENTERPRISE AGREEMENT,YO32 9GZ,Admin
Food Standards Agency,Food Standards Agency,29/07/2015,IT Software Licences,IT Service Delivery,Trustmarque Solutions Ltd,2231943,302.71,MICROSOFT LICENSING ENTERPRISE AGREEMENT,YO32 9GZ,Admin
Food Standards Agency,Food Standards Agency,01/07/2015,Travel UK ,Hygiene & Microbiology Division HoD,Redfern Travel Ltd,171,301.44,REDFERN TRAVEL INVOICE WK 25,BD1 3AZ,Admin
Food Standards Agency,Food Standards Agency,27/07/2015,Subsistence UK,Finance Director & Branch,Redfern Travel Ltd,219,298.6,REDFERN TRAVEL INVOICE WK 29,BD1 3AZ,Admin
Food Standards Agency,Food Standards Agency,21/07/2015,Subsistence UK,Planning and Performance,Redfern Travel Ltd,212,297.2,REDFERN TRAVEL INVOICE WK 28,BD1 3AZ,Admin
Food Standards Agency,Food Standards Agency,01/07/2015,Travel UK ,Comms Directors Office,Redfern Travel Ltd,171,291.4,REDFERN TRAVEL INVOICE WK 25,BD1 3AZ,Admin
Food Standards Agency,Food Standards Agency,01/07/2015,Travel UK ,EU Regulatory Reform Branch,Redfern Travel Ltd,171,290.72,REDFERN TRAVEL INVOICE WK 25,BD1 3AZ,Admin
Food Standards Agency,Food Standards Agency,21/07/2015,Travel UK ,Food Hygiene Policy Branch,Redfern Travel Ltd,212,289.05,REDFERN TRAVEL INVOICE WK 28,BD1 3AZ,Admin
Food Standards Agency,Food Standards Agency,07/07/2015,Subsistence UK,Legal Branch A & Investigations,Redfern Travel Ltd,193,279.2,REDFERN TRAVEL INVOICE WEEK 26,BD1 3AZ,Admin
Food Standards Agency,Food Standards Agency,21/07/2015,Travel UK ,Directorate Support Unit,Redfern Travel Ltd,212,278.96,REDFERN TRAVEL INVOICE WK 28,BD1 3AZ,Admin
Food Standards Agency,Food Standards Agency,27/07/2015,Subsistence UK,Operations Assurance - Admin,Redfern Travel Ltd,219,277.42,REDFERN TRAVEL INVOICE WK 29,BD1 3AZ,Admin
Food Standards Agency,Food Standards Agency,07/07/2015,IT Software Licences,IT Service Delivery,Trustmarque Solutions Ltd,2231745,277.38,MICROSOFT LICENSING ENTERPRISE AGREEMENT,YO32 9GZ,Admin
Food Standards Agency,Food Standards Agency,29/07/2015,IT Software Licences,IT Service Delivery,Trustmarque Solutions Ltd,2231943,277.38,MICROSOFT LICENSING ENTERPRISE AGREEMENT,YO32 9GZ,Admin
Food Standards Agency,Food Standards Agency,01/07/2015,Travel UK ,Information Strategy & Implementation Programme,Redfern Travel Ltd,171,275.99,REDFERN TRAVEL INVOICE WK 25,BD1 3AZ,Admin
Food Standards Agency,Food Standards Agency,27/07/2015,Travel UK ,Comms Directors Office,Redfern Travel Ltd,219,273.28,REDFERN TRAVEL INVOICE WK 29,BD1 3AZ,Admin
Food Standards Agency,Food Standards Agency,27/07/2015,Subsistence EC,Food Hygiene Policy Branch,Redfern Travel Ltd,219,273.03,REDFERN TRAVEL INVOICE WK 29,BD1 3AZ,Admin
Food Standards Agency,Food Standards Agency,21/07/2015,Travel UK ,Area 6 South East England - Cluster 66,Redfern Travel Ltd,212,259,REDFERN TRAVEL INVOICE WK 28,BD1 3AZ,Programme
Food Standards Agency,Food Standards Agency,21/07/2015,Subsistence UK,Chair & Deputy Chair,Redfern Travel Ltd,212,255.65,REDFERN TRAVEL INVOICE WK 28,BD1 3AZ,Admin
Food Standards Agency,Food Standards Agency,07/07/2015,Travel UK ,IT Service Delivery,Redfern Travel Ltd,193,254.16,WEEKLY TRAVEL INVOICE,BD1 3AZ,Admin
Food Standards Agency,Food Standards Agency,21/07/2015,Travel UK ,Area 6 South East England - Cluster 62,Redfern Travel Ltd,212,252.35,REDFERN TRAVEL INVOICE WK 28,BD1 3AZ,Programme
Food Standards Agency,Food Standards Agency,07/07/2015,Travel UK ,Additives,Redfern Travel Ltd,193,252.11,REDFERN TRAVEL INVOICE WEEK 26,BD1 3AZ,Admin
Food Standards Agency,Food Standards Agency,07/07/2015,International Travel,Regulatory & International,Redfern Travel Ltd,193,252.11,REDFERN TRAVEL INVOICE WEEK 26,BD1 3AZ,Admin
Food Standards Agency,Food Standards Agency,21/07/2015,Travel UK ,Area 5 South West England - Cluster 51,Redfern Travel Ltd,212,250.71,REDFERN TRAVEL INVOICE WK 28,BD1 3AZ,Programme
Food Standards Agency,Food Standards Agency,21/07/2015,Travel UK ,Regulatory & International,Redfern Travel Ltd,212,250.71,REDFERN TRAVEL INVOICE WK 28,BD1 3AZ,Admin
Food Standards Agency,Food Standards Agency,07/07/2015,Travel UK ,Analysis & Research Branch,Redfern Travel Ltd,193,249.68,REDFERN TRAVEL INVOICE WEEK 26,BD1 3AZ,Admin
Food Standards Agency,Food Standards Agency,27/07/2015,International Travel,Chief Executive & Private Office,Redfern Travel Ltd,219,249.38,REDFERN TRAVEL INVOICE WK 29,BD1 3AZ,Admin
Food Standards Agency,Food Standards Agency,07/07/2015,Subsistence UK,Operations Local Delivery ,Redfern Travel Ltd,193,243.5,REDFERN TRAVEL INVOICE WEEK 26,BD1 3AZ,Admin
Food Standards Agency,Food Standards Agency,07/07/2015,Subsistence UK,Area 5 South West England - Cluster 56,Redfern Travel Ltd,193,243.4,REDFERN TRAVEL INVOICE WEEK 26,BD1 3AZ,Programme
Food Standards Agency,Food Standards Agency,07/07/2015,Travel UK ,Area 3 North West England - Cluster 34,Redfern Travel Ltd,193,241.15,REDFERN TRAVEL INVOICE WEEK 26,BD1 3AZ,Programme
Food Standards Agency,Food Standards Agency,27/07/2015,Subsistence EC,Animal Feed Branch,Redfern Travel Ltd,219,240.64,REDFERN TRAVEL INVOICE WK 29,BD1 3AZ,Admin
Food Standards Agency,Food Standards Agency,07/07/2015,Travel UK ,Chair & Deputy Chair,Redfern Travel Ltd,193,240.23,REDFERN TRAVEL INVOICE WEEK 26,BD1 3AZ,Admin
Food Standards Agency,Food Standards Agency,01/07/2015,Travel UK ,Area 6 South East England - Cluster 61,Redfern Travel Ltd,171,238.15,REDFERN TRAVEL INVOICE WK 25,BD1 3AZ,Programme
Food Standards Agency,Food Standards Agency,07/07/2015,Travel UK ,Non Meat Field Ops,Redfern Travel Ltd,193,236.37,REDFERN TRAVEL INVOICE WEEK 26,BD1 3AZ,Programme
Food Standards Agency,Food Standards Agency,21/07/2015,Travel UK ,Area 6 South East England - Cluster 64,Redfern Travel Ltd,212,235.57,REDFERN TRAVEL INVOICE WK 28,BD1 3AZ,Programme
Food Standards Agency,Food Standards Agency,01/07/2015,Subsistence UK,Organisational Development,Redfern Travel Ltd,171,232.2,REDFERN TRAVEL INVOICE WK 25,BD1 3AZ,Admin
Food Standards Agency,Food Standards Agency,07/07/2015,Travel UK ,Area 6 South East England - Cluster 64,Redfern Travel Ltd,193,229.58,REDFERN TRAVEL INVOICE WEEK 26,BD1 3AZ,Programme
Food Standards Agency,Food Standards Agency,21/07/2015,Subsistence UK,IT Information & Knowledge Management,Redfern Travel Ltd,212,229.44,REDFERN TRAVEL INVOICE WK 28,BD1 3AZ,Admin
Food Standards Agency,Food Standards Agency,01/07/2015,Subsistence UK,Area 6 South East England - Cluster 64,Redfern Travel Ltd,171,227.7,REDFERN TRAVEL INVOICE WK 25,BD1 3AZ,Programme
Food Standards Agency,Food Standards Agency,27/07/2015,Travel UK ,Animal Feed Branch,Redfern Travel Ltd,219,223.6,REDFERN TRAVEL INVOICE WK 29,BD1 3AZ,Admin
Food Standards Agency,Food Standards Agency,07/07/2015,Travel UK ,Legal Branch A & Investigations,Redfern Travel Ltd,193,223.42,REDFERN TRAVEL INVOICE WEEK 26,BD1 3AZ,Admin
Food Standards Agency,Food Standards Agency,01/07/2015,Travel UK ,IT Service Delivery,Redfern Travel Ltd,171,222.41,WEEKLY TRAVEL INVOICE,BD1 3AZ,Admin
Food Standards Agency,Food Standards Agency,27/07/2015,Subsistence UK,Animal Feed Branch,Redfern Travel Ltd,219,220.24,REDFERN TRAVEL INVOICE WK 29,BD1 3AZ,Admin
Food Standards Agency,Food Standards Agency,21/07/2015,Travel UK ,Area 6 South East England - Cluster 61,Redfern Travel Ltd,212,218.26,REDFERN TRAVEL INVOICE WK 28,BD1 3AZ,Programme
Food Standards Agency,Food Standards Agency,27/07/2015,Travel UK ,Area 4 North East England - Cluster 41,Redfern Travel Ltd,219,213.77,REDFERN TRAVEL INVOICE WK 29,BD1 3AZ,Programme
Food Standards Agency,Food Standards Agency,21/07/2015,Travel UK ,Procurement,Redfern Travel Ltd,212,212.06,REDFERN TRAVEL INVOICE WK 28,BD1 3AZ,Admin
Food Standards Agency,Food Standards Agency,27/07/2015,Travel UK ,Area 5 South West England - Cluster 57,Redfern Travel Ltd,219,211.12,REDFERN TRAVEL INVOICE WK 29,BD1 3AZ,Programme
Food Standards Agency,Food Standards Agency,07/07/2015,Travel UK ,Area 5 South West England - Cluster 53,Redfern Travel Ltd,193,209.64,REDFERN TRAVEL INVOICE WEEK 26,BD1 3AZ,Programme
Food Standards Agency,Food Standards Agency,07/07/2015,Travel UK ,Area 4 North East England - Cluster 41,Redfern Travel Ltd,193,206.54,REDFERN TRAVEL INVOICE WEEK 26,BD1 3AZ,Programme
Food Standards Agency,Food Standards Agency,27/07/2015,Subsistence UK,Procurement,Redfern Travel Ltd,219,206.1,REDFERN TRAVEL INVOICE WK 29,BD1 3AZ,Admin
Food Standards Agency,Food Standards Agency,21/07/2015,Subsistence UK,Area 3 North West England - Cluster 31,Redfern Travel Ltd,212,204.7,REDFERN TRAVEL INVOICE WK 28,BD1 3AZ,Programme
Food Standards Agency,Food Standards Agency,01/07/2015,Subsistence UK,Area 6 South East England - Cluster 63,Redfern Travel Ltd,171,201.42,REDFERN TRAVEL INVOICE WK 25,BD1 3AZ,Programme
Food Standards Agency,Food Standards Agency,07/07/2015,Subsistence UK,Consumer Protection & Commercial Support,Redfern Travel Ltd,193,200.19,REDFERN TRAVEL INVOICE WEEK 26,BD1 3AZ,Admin
Food Standards Agency,Food Standards Agency,27/07/2015,Subsistence UK,Comms Directors Office,Redfern Travel Ltd,219,197.8,REDFERN TRAVEL INVOICE WK 29,BD1 3AZ,Admin
Food Standards Agency,Food Standards Agency,27/07/2015,Subsistence UK,Organisational Development,Redfern Travel Ltd,219,195.85,REDFERN TRAVEL INVOICE WK 29,BD1 3AZ,Admin
Food Standards Agency,Food Standards Agency,21/07/2015,Subsistence UK,Operations Assurance - Admin,Redfern Travel Ltd,212,191.42,REDFERN TRAVEL INVOICE WK 28,BD1 3AZ,Admin
Food Standards Agency,Food Standards Agency,21/07/2015,Travel UK ,IT Information & Knowledge Management,Redfern Travel Ltd,212,189.81,REDFERN TRAVEL INVOICE WK 28,BD1 3AZ,Admin
Food Standards Agency,Food Standards Agency,07/07/2015,Subsistence UK,Directorate Support Unit,Redfern Travel Ltd,193,189.4,REDFERN TRAVEL INVOICE WEEK 26,BD1 3AZ,Admin
Food Standards Agency,Food Standards Agency,27/07/2015,Travel UK ,Operations Assurance - Admin,Redfern Travel Ltd,219,188.74,REDFERN TRAVEL INVOICE WK 29,BD1 3AZ,Admin
Food Standards Agency,Food Standards Agency,07/07/2015,IT Software Licences,IT Service Delivery,Trustmarque Solutions Ltd,2231745,188.38,MICROSOFT LICENSING ENTERPRISE AGREEMENT,YO32 9GZ,Admin
Food Standards Agency,Food Standards Agency,29/07/2015,IT Software Licences,IT Service Delivery,Trustmarque Solutions Ltd,2231943,188.38,MICROSOFT LICENSING ENTERPRISE AGREEMENT,YO32 9GZ,Admin
Food Standards Agency,Food Standards Agency,07/07/2015,Travel UK ,Chief Scientist,Redfern Travel Ltd,193,187.64,REDFERN TRAVEL INVOICE WEEK 26,BD1 3AZ,Admin
Food Standards Agency,Food Standards Agency,27/07/2015,Travel UK ,Non Meat Field Ops,Redfern Travel Ltd,219,183.9,REDFERN TRAVEL INVOICE WK 29,BD1 3AZ,Programme
Food Standards Agency,Food Standards Agency,01/07/2015,Subsistence UK,Area 4 North East England - Cluster 46,Redfern Travel Ltd,171,182.45,REDFERN TRAVEL INVOICE WK 25,BD1 3AZ,Programme
Food Standards Agency,Food Standards Agency,27/07/2015,Travel UK ,Area 5 South West England - Cluster 51,Redfern Travel Ltd,219,180.35,REDFERN TRAVEL INVOICE WK 29,BD1 3AZ,Programme
Food Standards Agency,Food Standards Agency,07/07/2015,Travel UK ,Area 6 South East England - Cluster 63,Redfern Travel Ltd,193,179.21,REDFERN TRAVEL INVOICE WEEK 26,BD1 3AZ,Programme
Food Standards Agency,Food Standards Agency,07/07/2015,IT Software Licences,IT Service Delivery,Trustmarque Solutions Ltd,2231745,177.84,MICROSOFT LICENSING ENTERPRISE AGREEMENT,YO32 9GZ,Admin
Food Standards Agency,Food Standards Agency,29/07/2015,IT Software Licences,IT Service Delivery,Trustmarque Solutions Ltd,2231943,177.84,MICROSOFT LICENSING ENTERPRISE AGREEMENT,YO32 9GZ,Admin
Food Standards Agency,Food Standards Agency,21/07/2015,Travel UK ,Security & Estates,Redfern Travel Ltd,212,176.81,CONSOLIDATED INVOICE - TRAVEL COSTS FOR SES STAFF - JUNE 2015,BD1 3AZ,Admin
Food Standards Agency,Food Standards Agency,01/07/2015,Travel UK ,Procurement,Redfern Travel Ltd,171,176.34,REDFERN TRAVEL INVOICE WK 25,BD1 3AZ,Admin
Food Standards Agency,Food Standards Agency,01/07/2015,Travel UK ,Area 3 North West England - Cluster 35,Redfern Travel Ltd,171,172.81,REDFERN TRAVEL INVOICE WK 25,BD1 3AZ,Programme
Food Standards Agency,Food Standards Agency,07/07/2015,Subsistence UK,Area 2 Wales - Cluster 23,Redfern Travel Ltd,193,171.42,REDFERN TRAVEL INVOICE WEEK 26,BD1 3AZ,Programme
Food Standards Agency,Food Standards Agency,21/07/2015,Travel UK ,Non Meat Field Ops,Redfern Travel Ltd,212,170.02,REDFERN TRAVEL INVOICE WK 28,BD1 3AZ,Programme
Food Standards Agency,Food Standards Agency,01/07/2015,Travel UK ,Legal Branch A & Investigations,Redfern Travel Ltd,171,169.89,REDFERN TRAVEL INVOICE WK 25,BD1 3AZ,Admin
Food Standards Agency,Food Standards Agency,01/07/2015,Travel UK ,Non Meat Field Ops,Redfern Travel Ltd,171,169.83,REDFERN TRAVEL INVOICE WK 25,BD1 3AZ,Programme
Food Standards Agency,Food Standards Agency,21/07/2015,Travel UK ,Contaminants HoD,Redfern Travel Ltd,212,168.22,REDFERN TRAVEL INVOICE WK 28,BD1 3AZ,Admin
Food Standards Agency,Food Standards Agency,07/07/2015,Travel UK ,Area 6 South East England - Cluster 65,Redfern Travel Ltd,193,166.89,REDFERN TRAVEL INVOICE WEEK 26,BD1 3AZ,Programme
Food Standards Agency,Food Standards Agency,27/07/2015,Travel UK ,Procurement,Redfern Travel Ltd,219,165.12,REDFERN TRAVEL INVOICE WK 29,BD1 3AZ,Admin
Food Standards Agency,Food Standards Agency,01/07/2015,Travel UK ,Security & Estates,Redfern Travel Ltd,171,164.92,CONSOLIDATED INVOICE - TRAVEL COSTS FOR SES STAFF - JUNE 2015,BD1 3AZ,Admin
Food Standards Agency,Food Standards Agency,21/07/2015,Travel UK ,Procurement,Redfern Travel Ltd,212,162.97,REDFERN TRAVEL INVOICE WK 28,BD1 3AZ,Admin
Food Standards Agency,Food Standards Agency,07/07/2015,Travel UK ,Area 5 South West England - Cluster 52,Redfern Travel Ltd,193,162.89,REDFERN TRAVEL INVOICE WEEK 26,BD1 3AZ,Programme
Food Standards Agency,Food Standards Agency,01/07/2015,Travel UK ,Area 2 Wales - Cluster 23,Redfern Travel Ltd,171,161.68,REDFERN TRAVEL INVOICE WK 25,BD1 3AZ,Programme
Food Standards Agency,Food Standards Agency,21/07/2015,Travel UK ,Chief Scientist,Redfern Travel Ltd,212,159.25,REDFERN TRAVEL INVOICE WK 28,BD1 3AZ,Admin
Food Standards Agency,Food Standards Agency,01/07/2015,Subsistence UK,Finance Director & Branch,Redfern Travel Ltd,171,155.8,REDFERN TRAVEL INVOICE WK 25,BD1 3AZ,Admin
Food Standards Agency,Food Standards Agency,01/07/2015,Travel UK ,IT Information & Knowledge Management,Redfern Travel Ltd,171,154.74,REDFERN TRAVEL INVOICE WK 25,BD1 3AZ,Admin
Food Standards Agency,Food Standards Agency,21/07/2015,Travel UK ,Area 3 North West England - Cluster 34,Redfern Travel Ltd,212,152.44,REDFERN TRAVEL INVOICE WK 28,BD1 3AZ,Programme
Food Standards Agency,Food Standards Agency,21/07/2015,Subsistence UK,Area 2 Wales - Cluster 22,Redfern Travel Ltd,212,151.8,REDFERN TRAVEL INVOICE WK 28,BD1 3AZ,Programme
Food Standards Agency,Food Standards Agency,07/07/2015,Travel UK ,Comms Directors Office,Redfern Travel Ltd,193,151.57,REDFERN TRAVEL INVOICE WEEK 26,BD1 3AZ,Admin
Food Standards Agency,Food Standards Agency,07/07/2015,IT Software Licences,IT Service Delivery,Trustmarque Solutions Ltd,2231745,151.37,MICROSOFT LICENSING ENTERPRISE AGREEMENT,YO32 9GZ,Admin
Food Standards Agency,Food Standards Agency,29/07/2015,IT Software Licences,IT Service Delivery,Trustmarque Solutions Ltd,2231943,151.37,MICROSOFT LICENSING ENTERPRISE AGREEMENT,YO32 9GZ,Admin
Food Standards Agency,Food Standards Agency,07/07/2015,Subsistence EC,Procurement,Redfern Travel Ltd,193,150.5,REDFERN TRAVEL INVOICE WEEK 26,BD1 3AZ,Admin
Food Standards Agency,Food Standards Agency,27/07/2015,Subsistence EC,Contaminants HoD,Redfern Travel Ltd,219,150.16,REDFERN TRAVEL INVOICE WK 29,BD1 3AZ,Admin
Food Standards Agency,Food Standards Agency,07/07/2015,Travel UK ,Area 4 North East England - Cluster 46,Redfern Travel Ltd,193,149.31,REDFERN TRAVEL INVOICE WEEK 26,BD1 3AZ,Programme
Food Standards Agency,Food Standards Agency,07/07/2015,Subsistence UK,Internal Audit,Redfern Travel Ltd,193,147.8,REDFERN TRAVEL INVOICE WEEK 26,BD1 3AZ,Admin
Food Standards Agency,Food Standards Agency,07/07/2015,Travel UK ,IT Information & Knowledge Management,Redfern Travel Ltd,193,147.79,REDFERN TRAVEL INVOICE WEEK 26,BD1 3AZ,Admin
Food Standards Agency,Food Standards Agency,07/07/2015,Travel UK ,Chief Executive & Private Office,Redfern Travel Ltd,193,146.88,REDFERN TRAVEL INVOICE WEEK 26,BD1 3AZ,Admin
Food Standards Agency,Food Standards Agency,21/07/2015,Subsistence UK,Area 5 South West England - Cluster 54,Redfern Travel Ltd,212,146.25,REDFERN TRAVEL INVOICE WK 28,BD1 3AZ,Programme
Food Standards Agency,Food Standards Agency,01/07/2015,Travel UK ,IT Strategy,Redfern Travel Ltd,171,146.24,REDFERN TRAVEL INVOICE WK 25,BD1 3AZ,Admin
Food Standards Agency,Food Standards Agency,27/07/2015,Travel UK ,Area 5 South West England - Cluster 53,Redfern Travel Ltd,219,144.02,REDFERN TRAVEL INVOICE WK 29,BD1 3AZ,Programme
Food Standards Agency,Food Standards Agency,21/07/2015,Subsistence EC,Legal Branch A & Investigations,Redfern Travel Ltd,212,143.84,REDFERN TRAVEL INVOICE WK 28,BD1 3AZ,Admin
Food Standards Agency,Food Standards Agency,21/07/2015,Travel UK ,Area 4 North East England - Cluster 42,Redfern Travel Ltd,212,141.89,REDFERN TRAVEL INVOICE WK 28,BD1 3AZ,Programme
Food Standards Agency,Food Standards Agency,27/07/2015,Subsistence EC,Consumer Protection & Commercial Support,Redfern Travel Ltd,219,141.14,REDFERN TRAVEL INVOICE WK 29,BD1 3AZ,Admin
Food Standards Agency,Food Standards Agency,01/07/2015,Subsistence UK,Analysis & Research Branch,Redfern Travel Ltd,171,138.71,REDFERN TRAVEL INVOICE WK 25,BD1 3AZ,Admin
Food Standards Agency,Food Standards Agency,21/07/2015,Travel UK ,Area 3 North West England - Cluster 31,Redfern Travel Ltd,212,138.64,REDFERN TRAVEL INVOICE WK 28,BD1 3AZ,Programme
Food Standards Agency,Food Standards Agency,01/07/2015,Travel UK ,Internal Audit,Redfern Travel Ltd,171,138.01,REDFERN TRAVEL INVOICE WK 25,BD1 3AZ,Admin
Food Standards Agency,Food Standards Agency,07/07/2015,Travel UK ,Food Hygiene Policy Branch,Redfern Travel Ltd,193,137.86,REDFERN TRAVEL INVOICE WEEK 26,BD1 3AZ,Admin
Food Standards Agency,Food Standards Agency,27/07/2015,Travel UK ,Area 3 North West England - Cluster 31,Redfern Travel Ltd,219,136.66,REDFERN TRAVEL INVOICE WK 29,BD1 3AZ,Programme
Food Standards Agency,Food Standards Agency,07/07/2015,IT Software Licences,IT Service Delivery,Trustmarque Solutions Ltd,2231745,134.64,MICROSOFT LICENSING ENTERPRISE AGREEMENT,YO32 9GZ,Admin
Food Standards Agency,Food Standards Agency,29/07/2015,IT Software Licences,IT Service Delivery,Trustmarque Solutions Ltd,2231943,134.64,MICROSOFT LICENSING ENTERPRISE AGREEMENT,YO32 9GZ,Admin
Food Standards Agency,Food Standards Agency,21/07/2015,Travel UK ,Area 6 South East England - Cluster 63,Redfern Travel Ltd,212,134.25,REDFERN TRAVEL INVOICE WK 28,BD1 3AZ,Programme
Food Standards Agency,Food Standards Agency,07/07/2015,IT Software Licences,IT Service Delivery,Trustmarque Solutions Ltd,2231745,130.61,MICROSOFT LICENSING ENTERPRISE AGREEMENT,YO32 9GZ,Admin
Food Standards Agency,Food Standards Agency,29/07/2015,IT Software Licences,IT Service Delivery,Trustmarque Solutions Ltd,2231943,130.61,MICROSOFT LICENSING ENTERPRISE AGREEMENT,YO32 9GZ,Admin
Food Standards Agency,Food Standards Agency,27/07/2015,Subsistence UK,Legal Branch A & Investigations,Redfern Travel Ltd,219,127.9,REDFERN TRAVEL INVOICE WK 29,BD1 3AZ,Admin
Food Standards Agency,Food Standards Agency,01/07/2015,Subsistence UK,Security & Estates,Redfern Travel Ltd,171,127.8,CONSOLIDATED INVOICE - SUBSISTENCE COSTS FOR SES STAFF - JUNE 2015,BD1 3AZ,Admin
Food Standards Agency,Food Standards Agency,21/07/2015,Subsistence UK,Consumer Protection & Commercial Support,Redfern Travel Ltd,212,127.79,REDFERN TRAVEL INVOICE WK 28,BD1 3AZ,Admin
Food Standards Agency,Food Standards Agency,21/07/2015,Subsistence UK,IT Service Delivery,Redfern Travel Ltd,212,127.79,WEEKLY TRAVEL INVOICE,BD1 3AZ,Admin
Food Standards Agency,Food Standards Agency,27/07/2015,Subsistence UK,Food Hygiene Policy Branch,Redfern Travel Ltd,219,124.88,REDFERN TRAVEL INVOICE WK 29,BD1 3AZ,Admin
Food Standards Agency,Food Standards Agency,21/07/2015,Travel UK ,Area 6 South East England - Cluster 65,Redfern Travel Ltd,212,124.69,REDFERN TRAVEL INVOICE WK 28,BD1 3AZ,Programme
Food Standards Agency,Food Standards Agency,01/07/2015,Subsistence EC,Animal Feed Branch,Redfern Travel Ltd,171,124.23,REDFERN TRAVEL INVOICE WK 25,BD1 3AZ,Admin
Food Standards Agency,Food Standards Agency,27/07/2015,Subsistence EC,Contaminants Policy & Strategy Unit,Redfern Travel Ltd,219,122.12,REDFERN TRAVEL INVOICE WK 29,BD1 3AZ,Admin
Food Standards Agency,Food Standards Agency,21/07/2015,Subsistence UK,Internal Audit,Redfern Travel Ltd,212,121.8,REDFERN TRAVEL INVOICE WK 28,BD1 3AZ,Admin
Food Standards Agency,Food Standards Agency,27/07/2015,Subsistence UK,Additives,Redfern Travel Ltd,219,121.2,REDFERN TRAVEL INVOICE WK 29,BD1 3AZ,Admin
Food Standards Agency,Food Standards Agency,07/07/2015,Subsistence UK,Area 4 North East England - Cluster 47,Redfern Travel Ltd,193,119.8,REDFERN TRAVEL INVOICE WEEK 26,BD1 3AZ,Programme
Food Standards Agency,Food Standards Agency,21/07/2015,Travel UK ,Area 5 South West England - Cluster 54,Redfern Travel Ltd,212,118.51,REDFERN TRAVEL INVOICE WK 28,BD1 3AZ,Programme
Food Standards Agency,Food Standards Agency,27/07/2015,Travel UK ,Chemical Risk Assessment Unit,Redfern Travel Ltd,219,117.45,REDFERN TRAVEL INVOICE WK 29,BD1 3AZ,Admin
Food Standards Agency,Food Standards Agency,27/07/2015,Subsistence EC,Additives,Redfern Travel Ltd,219,117.41,REDFERN TRAVEL INVOICE WK 29,BD1 3AZ,Admin
Food Standards Agency,Food Standards Agency,27/07/2015,Subsistence UK,EU Regulatory Reform Branch,Redfern Travel Ltd,219,114.37,REDFERN TRAVEL INVOICE WK 29,BD1 3AZ,Admin
Food Standards Agency,Food Standards Agency,07/07/2015,IT Software Licences,IT Service Delivery,Trustmarque Solutions Ltd,2231745,113.01,MICROSOFT LICENSING ENTERPRISE AGREEMENT,YO32 9GZ,Admin
Food Standards Agency,Food Standards Agency,29/07/2015,IT Software Licences,IT Service Delivery,Trustmarque Solutions Ltd,2231943,113.01,MICROSOFT LICENSING ENTERPRISE AGREEMENT,YO32 9GZ,Admin
Food Standards Agency,Food Standards Agency,27/07/2015,Travel UK ,Chief Executive & Private Office,Redfern Travel Ltd,219,112.37,REDFERN TRAVEL INVOICE WK 29,BD1 3AZ,Admin
Food Standards Agency,Food Standards Agency,01/07/2015,Subsistence EC,EU Regulatory Reform Branch,Redfern Travel Ltd,171,112.29,REDFERN TRAVEL INVOICE WK 25,BD1 3AZ,Admin
Food Standards Agency,Food Standards Agency,27/07/2015,Subsistence UK,Area 5 South West England - Cluster 53,Redfern Travel Ltd,219,110.7,REDFERN TRAVEL INVOICE WK 29,BD1 3AZ,Programme
Food Standards Agency,Food Standards Agency,07/07/2015,Subsistence UK,Area 1 Scotland - Cluster 12,Redfern Travel Ltd,193,110.47,REDFERN TRAVEL INVOICE WEEK 26,BD1 3AZ,Programme
Food Standards Agency,Food Standards Agency,07/07/2015,Subsistence UK,Area 1 Scotland - Cluster 13,Redfern Travel Ltd,193,110.47,REDFERN TRAVEL INVOICE WEEK 26,BD1 3AZ,Programme
Food Standards Agency,Food Standards Agency,07/07/2015,Subsistence UK,Area 1 Scotland - Cluster 15,Redfern Travel Ltd,193,110.47,REDFERN TRAVEL INVOICE WEEK 26,BD1 3AZ,Programme
Food Standards Agency,Food Standards Agency,07/07/2015,Subsistence UK,Area 1 Scotland - Cluster 11,Redfern Travel Ltd,193,110.35,REDFERN TRAVEL INVOICE WEEK 26,BD1 3AZ,Programme
Food Standards Agency,Food Standards Agency,01/07/2015,Subsistence UK,Area 5 South West England - Cluster 53,Redfern Travel Ltd,171,109.45,REDFERN TRAVEL INVOICE WK 25,BD1 3AZ,Programme
Food Standards Agency,Food Standards Agency,07/07/2015,Travel UK ,Information Strategy & Implementation Programme,Redfern Travel Ltd,193,106.47,REDFERN TRAVEL INVOICE WEEK 26,BD1 3AZ,Admin
Food Standards Agency,Food Standards Agency,07/07/2015,Travel UK ,Area 6 South East England - Cluster 61,Redfern Travel Ltd,193,103.7,REDFERN TRAVEL INVOICE WEEK 26,BD1 3AZ,Programme
Food Standards Agency,Food Standards Agency,27/07/2015,Travel UK ,Area 5 South West England - Cluster 56,Redfern Travel Ltd,219,103.23,REDFERN TRAVEL INVOICE WK 29,BD1 3AZ,Programme
Food Standards Agency,Food Standards Agency,27/07/2015,Subsistence UK,Area 5 South West England - Cluster 56,Redfern Travel Ltd,219,103.05,REDFERN TRAVEL INVOICE WK 29,BD1 3AZ,Programme
Food Standards Agency,Food Standards Agency,01/07/2015,Subsistence UK,Area 6 South East England - Cluster 62,Redfern Travel Ltd,171,103.05,REDFERN TRAVEL INVOICE WK 25,BD1 3AZ,Programme
Food Standards Agency,Food Standards Agency,01/07/2015,Subsistence UK,Operations Local Delivery ,Redfern Travel Ltd,171,103.05,REDFERN TRAVEL INVOICE WK 25,BD1 3AZ,Admin
Food Standards Agency,Food Standards Agency,01/07/2015,Subsistence UK,Chemical Risk Assessment Unit,Redfern Travel Ltd,171,103.05,REDFERN TRAVEL INVOICE WK 25,BD1 3AZ,Admin
Food Standards Agency,Food Standards Agency,27/07/2015,Travel UK ,Area 6 South East England - Cluster 65,Redfern Travel Ltd,219,102.41,REDFERN TRAVEL INVOICE WK 29,BD1 3AZ,Programme
Food Standards Agency,Food Standards Agency,07/07/2015,Subsistence UK,Area 6 South East England - Cluster 64,Redfern Travel Ltd,193,101.4,REDFERN TRAVEL INVOICE WEEK 26,BD1 3AZ,Programme
Food Standards Agency,Food Standards Agency,07/07/2015,Subsistence UK,Area 6 South East England - Cluster 63,Redfern Travel Ltd,193,100.8,REDFERN TRAVEL INVOICE WEEK 26,BD1 3AZ,Programme
Food Standards Agency,Food Standards Agency,01/07/2015,Subsistence UK,Legal Branch A & Investigations,Redfern Travel Ltd,171,100.4,REDFERN TRAVEL INVOICE WK 25,BD1 3AZ,Admin
Food Standards Agency,Food Standards Agency,21/07/2015,Travel UK ,Contaminants Policy & Strategy Unit,Redfern Travel Ltd,212,98.1,REDFERN TRAVEL INVOICE WK 28,BD1 3AZ,Admin
Food Standards Agency,Food Standards Agency,01/07/2015,Travel UK ,Area 4 North East England - Cluster 46,Redfern Travel Ltd,171,97.9,REDFERN TRAVEL INVOICE WK 25,BD1 3AZ,Programme
Food Standards Agency,Food Standards Agency,21/07/2015,Travel UK ,Area 2 Wales - Cluster 22,Redfern Travel Ltd,212,97.74,REDFERN TRAVEL INVOICE WK 28,BD1 3AZ,Programme
Food Standards Agency,Food Standards Agency,07/07/2015,Subsistence UK,Area 3 North West England - Cluster 34,Redfern Travel Ltd,193,97.45,REDFERN TRAVEL INVOICE WEEK 26,BD1 3AZ,Programme
Food Standards Agency,Food Standards Agency,07/07/2015,IT Software Licences,IT Service Delivery,Trustmarque Solutions Ltd,2231745,96.58,MICROSOFT LICENSING ENTERPRISE AGREEMENT,YO32 9GZ,Admin
Food Standards Agency,Food Standards Agency,29/07/2015,IT Software Licences,IT Service Delivery,Trustmarque Solutions Ltd,2231943,96.58,MICROSOFT LICENSING ENTERPRISE AGREEMENT,YO32 9GZ,Admin
Food Standards Agency,Food Standards Agency,27/07/2015,Travel UK ,Area 6 South East England - Cluster 66,Redfern Travel Ltd,219,96.18,REDFERN TRAVEL INVOICE WK 29,BD1 3AZ,Programme
Food Standards Agency,Food Standards Agency,27/07/2015,Subsistence UK,Chief Executive & Private Office,Redfern Travel Ltd,219,96.05,REDFERN TRAVEL INVOICE WK 29,BD1 3AZ,Admin
Food Standards Agency,Food Standards Agency,07/07/2015,Travel UK ,Procurement,Redfern Travel Ltd,193,95.8,REDFERN TRAVEL INVOICE WEEK 26,BD1 3AZ,Admin
Food Standards Agency,Food Standards Agency,21/07/2015,Subsistence UK,Area 4 North East England - Cluster 42,Redfern Travel Ltd,212,95.4,REDFERN TRAVEL INVOICE WK 28,BD1 3AZ,Programme
Food Standards Agency,Food Standards Agency,21/07/2015,Subsistence UK,Area 6 South East England - Cluster 66,Redfern Travel Ltd,212,95.4,REDFERN TRAVEL INVOICE WK 28,BD1 3AZ,Programme
Food Standards Agency,Food Standards Agency,01/07/2015,Subsistence UK,Comms Directors Office,Redfern Travel Ltd,171,95.4,REDFERN TRAVEL INVOICE WK 25,BD1 3AZ,Admin
Food Standards Agency,Food Standards Agency,07/07/2015,Subsistence UK,Comms Directors Office,Redfern Travel Ltd,193,95.4,REDFERN TRAVEL INVOICE WEEK 26,BD1 3AZ,Admin
Food Standards Agency,Food Standards Agency,21/07/2015,Travel UK ,Additives,Redfern Travel Ltd,212,95.29,REDFERN TRAVEL INVOICE WK 28,BD1 3AZ,Admin
Food Standards Agency,Food Standards Agency,21/07/2015,Subsistence UK,Chemical Risk Assessment Unit,Redfern Travel Ltd,212,93.4,REDFERN TRAVEL INVOICE WK 28,BD1 3AZ,Admin
Food Standards Agency,Food Standards Agency,07/07/2015,Subsistence UK,Finance Director & Branch,Redfern Travel Ltd,193,93.4,REDFERN TRAVEL INVOICE WEEK 26,BD1 3AZ,Admin
Food Standards Agency,Food Standards Agency,21/07/2015,Travel UK ,Approvals & Veterinary Advice,Redfern Travel Ltd,212,91.43,REDFERN TRAVEL INVOICE WK 28,BD1 3AZ,Programme
Food Standards Agency,Food Standards Agency,01/07/2015,Subsistence UK,Area 2 Wales - Cluster 22,Redfern Travel Ltd,171,90.4,REDFERN TRAVEL INVOICE WK 25,BD1 3AZ,Programme
Food Standards Agency,Food Standards Agency,21/07/2015,Travel UK ,EU Regulatory Reform Branch,Redfern Travel Ltd,212,86.68,REDFERN TRAVEL INVOICE WK 28,BD1 3AZ,Admin
Food Standards Agency,Food Standards Agency,07/07/2015,Subsistence EC,Information Strategy & Implementation Programme,Redfern Travel Ltd,193,86.4,REDFERN TRAVEL INVOICE WEEK 26,BD1 3AZ,Admin
Food Standards Agency,Food Standards Agency,27/07/2015,Travel UK ,Chief Scientist,Redfern Travel Ltd,219,86.1,REDFERN TRAVEL INVOICE WK 29,BD1 3AZ,Admin
Food Standards Agency,Food Standards Agency,07/07/2015,Travel UK ,Area 5 South West England - Cluster 55,Redfern Travel Ltd,193,86.07,REDFERN TRAVEL INVOICE WEEK 26,BD1 3AZ,Programme
Food Standards Agency,Food Standards Agency,27/07/2015,Subsistence UK,Area 6 South East England - Cluster 64,Redfern Travel Ltd,219,79.4,REDFERN TRAVEL INVOICE WK 29,BD1 3AZ,Programme
Food Standards Agency,Food Standards Agency,07/07/2015,IT Software Licences,IT Service Delivery,Trustmarque Solutions Ltd,2231745,75.23,MICROSOFT LICENSING ENTERPRISE AGREEMENT,YO32 9GZ,Admin
Food Standards Agency,Food Standards Agency,29/07/2015,IT Software Licences,IT Service Delivery,Trustmarque Solutions Ltd,2231943,75.23,MICROSOFT LICENSING ENTERPRISE AGREEMENT,YO32 9GZ,Admin
Food Standards Agency,Food Standards Agency,27/07/2015,Travel UK ,Contaminants Policy & Strategy Unit,Redfern Travel Ltd,219,73.93,REDFERN TRAVEL INVOICE WK 29,BD1 3AZ,Admin
Food Standards Agency,Food Standards Agency,21/07/2015,Subsistence UK,Finance Director & Branch,Redfern Travel Ltd,212,70.2,REDFERN TRAVEL INVOICE WK 28,BD1 3AZ,Admin
Food Standards Agency,Food Standards Agency,07/07/2015,IT Software Licences,IT Service Delivery,Trustmarque Solutions Ltd,2231745,70.08,MICROSOFT LICENSING ENTERPRISE AGREEMENT,YO32 9GZ,Admin
Food Standards Agency,Food Standards Agency,29/07/2015,IT Software Licences,IT Service Delivery,Trustmarque Solutions Ltd,2231943,70.08,MICROSOFT LICENSING ENTERPRISE AGREEMENT,YO32 9GZ,Admin
Food Standards Agency,Food Standards Agency,01/07/2015,Travel UK ,Area 6 South East England - Cluster 62,Redfern Travel Ltd,171,69.82,REDFERN TRAVEL INVOICE WK 25,BD1 3AZ,Programme
Food Standards Agency,Food Standards Agency,21/07/2015,Subsistence UK,Organisational Development,Redfern Travel Ltd,212,69.8,REDFERN TRAVEL INVOICE WK 28,BD1 3AZ,Admin
Food Standards Agency,Food Standards Agency,07/07/2015,Subsistence UK,Security & Estates,Redfern Travel Ltd,193,68.05,CONSOLIDATED INVOICE - SUBSISTENCE COSTS FOR SES STAFF - JUNE 2015,BD1 3AZ,Admin
Food Standards Agency,Food Standards Agency,21/07/2015,Travel UK ,Chair & Deputy Chair,Redfern Travel Ltd,212,65.89,REDFERN TRAVEL INVOICE WK 28,BD1 3AZ,Admin
Food Standards Agency,Food Standards Agency,01/07/2015,Travel UK ,Chair & Deputy Chair,Redfern Travel Ltd,171,65.73,REDFERN TRAVEL INVOICE WK 25,BD1 3AZ,Admin
Food Standards Agency,Food Standards Agency,07/07/2015,IT Software Licences,IT Service Delivery,Trustmarque Solutions Ltd,2231745,65.45,MICROSOFT LICENSING ENTERPRISE AGREEMENT,YO32 9GZ,Admin
Food Standards Agency,Food Standards Agency,29/07/2015,IT Software Licences,IT Service Delivery,Trustmarque Solutions Ltd,2231943,65.45,MICROSOFT LICENSING ENTERPRISE AGREEMENT,YO32 9GZ,Admin
Food Standards Agency,Food Standards Agency,27/07/2015,Subsistence UK,Area 5 South West England - Cluster 57,Redfern Travel Ltd,219,64.4,REDFERN TRAVEL INVOICE WK 29,BD1 3AZ,Programme
Food Standards Agency,Food Standards Agency,21/07/2015,Subsistence UK,Area 2 Wales - Cluster 21,Redfern Travel Ltd,212,63.4,REDFERN TRAVEL INVOICE WK 28,BD1 3AZ,Programme
Food Standards Agency,Food Standards Agency,01/07/2015,Travel UK ,Food Production Branch,Redfern Travel Ltd,171,62.82,REDFERN TRAVEL INVOICE WK 25,BD1 3AZ,Admin
Food Standards Agency,Food Standards Agency,21/07/2015,Subsistence UK,Legal Branch A & Investigations,Redfern Travel Ltd,212,59.8,REDFERN TRAVEL INVOICE WK 28,BD1 3AZ,Admin
Food Standards Agency,Food Standards Agency,27/07/2015,Subsistence EC,Chief Scientist,Redfern Travel Ltd,219,58.96,REDFERN TRAVEL INVOICE WK 29,BD1 3AZ,Admin
Food Standards Agency,Food Standards Agency,01/07/2015,Travel UK ,Microbiological Food Safety Branch,Redfern Travel Ltd,171,58.94,REDFERN TRAVEL INVOICE WK 25,BD1 3AZ,Admin
Food Standards Agency,Food Standards Agency,01/07/2015,Travel UK ,Area 6 South East England - Cluster 65,Redfern Travel Ltd,171,58.81,REDFERN TRAVEL INVOICE WK 25,BD1 3AZ,Programme
Food Standards Agency,Food Standards Agency,21/07/2015,Travel UK ,Legal Branch A & Investigations,Redfern Travel Ltd,212,57.84,REDFERN TRAVEL INVOICE WK 28,BD1 3AZ,Admin
Food Standards Agency,Food Standards Agency,07/07/2015,Travel UK ,Contaminants HoD,Redfern Travel Ltd,193,57.54,REDFERN TRAVEL INVOICE WEEK 26,BD1 3AZ,Admin
Food Standards Agency,Food Standards Agency,21/07/2015,Travel UK ,Area 5 South West England - Cluster 53,Redfern Travel Ltd,212,56.32,REDFERN TRAVEL INVOICE WK 28,BD1 3AZ,Programme
Food Standards Agency,Food Standards Agency,01/07/2015,Travel UK ,Area 4 North East England - Cluster 48,Redfern Travel Ltd,171,56.09,REDFERN TRAVEL INVOICE WK 25,BD1 3AZ,Programme
Food Standards Agency,Food Standards Agency,07/07/2015,IT Software Licences,IT Service Delivery,Trustmarque Solutions Ltd,2231745,55.48,MICROSOFT LICENSING ENTERPRISE AGREEMENT,YO32 9GZ,Admin
Food Standards Agency,Food Standards Agency,29/07/2015,IT Software Licences,IT Service Delivery,Trustmarque Solutions Ltd,2231943,55.48,MICROSOFT LICENSING ENTERPRISE AGREEMENT,YO32 9GZ,Admin
Food Standards Agency,Food Standards Agency,01/07/2015,Travel UK ,Area 3 North West England - Cluster 36,Redfern Travel Ltd,171,51.85,REDFERN TRAVEL INVOICE WK 25,BD1 3AZ,Programme
Food Standards Agency,Food Standards Agency,27/07/2015,Subsistence UK,Area 2 Wales - Cluster 23,Redfern Travel Ltd,219,51.4,REDFERN TRAVEL INVOICE WK 29,BD1 3AZ,Programme
Food Standards Agency,Food Standards Agency,21/07/2015,Travel UK ,Analysis & Research Branch,Redfern Travel Ltd,212,50.36,REDFERN TRAVEL INVOICE WK 28,BD1 3AZ,Admin
Food Standards Agency,Food Standards Agency,07/07/2015,IT Software Licences,IT Service Delivery,Trustmarque Solutions Ltd,2231745,50.05,MICROSOFT LICENSING ENTERPRISE AGREEMENT,YO32 9GZ,Admin
Food Standards Agency,Food Standards Agency,29/07/2015,IT Software Licences,IT Service Delivery,Trustmarque Solutions Ltd,2231943,50.05,MICROSOFT LICENSING ENTERPRISE AGREEMENT,YO32 9GZ,Admin
Food Standards Agency,Food Standards Agency,01/07/2015,Subsistence EC,Consumer Protection & Commercial Support,Redfern Travel Ltd,171,47.45,REDFERN TRAVEL INVOICE WK 25,BD1 3AZ,Admin
Food Standards Agency,Food Standards Agency,07/07/2015,Travel UK ,Contaminants Policy & Strategy Unit,Redfern Travel Ltd,193,47.06,REDFERN TRAVEL INVOICE WEEK 26,BD1 3AZ,Admin
Food Standards Agency,Food Standards Agency,27/07/2015,Travel UK ,Area 4 North East England - Cluster 42,Redfern Travel Ltd,219,46.34,REDFERN TRAVEL INVOICE WK 29,BD1 3AZ,Programme
Food Standards Agency,Food Standards Agency,27/07/2015,Travel UK ,Area 3 North West England - Cluster 32,Redfern Travel Ltd,219,45.47,REDFERN TRAVEL INVOICE WK 29,BD1 3AZ,Programme
Food Standards Agency,Food Standards Agency,01/07/2015,Subsistence UK,Area 3 North West England - Cluster 31,Redfern Travel Ltd,171,44.85,REDFERN TRAVEL INVOICE WK 25,BD1 3AZ,Programme
Food Standards Agency,Food Standards Agency,01/07/2015,Subsistence UK,Area 3 North West England - Cluster 36,Redfern Travel Ltd,171,44.85,REDFERN TRAVEL INVOICE WK 25,BD1 3AZ,Programme
Food Standards Agency,Food Standards Agency,27/07/2015,Subsistence UK,Area 4 North East England - Cluster 48,Redfern Travel Ltd,219,44.85,REDFERN TRAVEL INVOICE WK 29,BD1 3AZ,Programme
Food Standards Agency,Food Standards Agency,27/07/2015,Travel UK ,Area 3 North West England - Cluster 35,Redfern Travel Ltd,219,44.5,REDFERN TRAVEL INVOICE WK 29,BD1 3AZ,Programme
Food Standards Agency,Food Standards Agency,21/07/2015,Subsistence UK,Area 3 North West England - Cluster 32,Redfern Travel Ltd,212,44.05,REDFERN TRAVEL INVOICE WK 28,BD1 3AZ,Programme
Food Standards Agency,Food Standards Agency,07/07/2015,Travel UK ,Area 5 South West England - Cluster 54,Redfern Travel Ltd,193,43.09,REDFERN TRAVEL INVOICE WEEK 26,BD1 3AZ,Programme
Food Standards Agency,Food Standards Agency,27/07/2015,Travel UK ,Area 5 South West England - Cluster 54,Redfern Travel Ltd,219,43.09,REDFERN TRAVEL INVOICE WK 29,BD1 3AZ,Programme
Food Standards Agency,Food Standards Agency,07/07/2015,Travel UK ,Area 2 Wales - Cluster 23,Redfern Travel Ltd,193,42.8,REDFERN TRAVEL INVOICE WEEK 26,BD1 3AZ,Programme
Food Standards Agency,Food Standards Agency,21/07/2015,Travel UK ,Animal Feed     ,Redfern Travel Ltd,212,42.45,REDFERN TRAVEL INVOICE WK 28,BD1 3AZ,Admin
Food Standards Agency,Food Standards Agency,27/07/2015,Subsistence UK,Area 6 South East England - Cluster 61,Redfern Travel Ltd,219,42.05,REDFERN TRAVEL INVOICE WK 29,BD1 3AZ,Programme
Food Standards Agency,Food Standards Agency,01/07/2015,Subsistence UK,Directorate Support Unit,Redfern Travel Ltd,171,42.05,REDFERN TRAVEL INVOICE WK 25,BD1 3AZ,Admin
Food Standards Agency,Food Standards Agency,07/07/2015,IT Software Licences,IT Service Delivery,Trustmarque Solutions Ltd,2231745,38.64,MICROSOFT LICENSING ENTERPRISE AGREEMENT,YO32 9GZ,Admin
Food Standards Agency,Food Standards Agency,29/07/2015,IT Software Licences,IT Service Delivery,Trustmarque Solutions Ltd,2231943,38.64,MICROSOFT LICENSING ENTERPRISE AGREEMENT,YO32 9GZ,Admin
Food Standards Agency,Food Standards Agency,07/07/2015,Travel UK ,Microbiological Food Safety Branch,Redfern Travel Ltd,193,38.08,REDFERN TRAVEL INVOICE WEEK 26,BD1 3AZ,Admin
Food Standards Agency,Food Standards Agency,07/07/2015,IT Software Licences,IT Service Delivery,Trustmarque Solutions Ltd,2231745,37.68,MICROSOFT LICENSING ENTERPRISE AGREEMENT,YO32 9GZ,Admin
Food Standards Agency,Food Standards Agency,29/07/2015,IT Software Licences,IT Service Delivery,Trustmarque Solutions Ltd,2231943,37.68,MICROSOFT LICENSING ENTERPRISE AGREEMENT,YO32 9GZ,Admin
Food Standards Agency,Food Standards Agency,07/07/2015,IT Software Licences,IT Service Delivery,Trustmarque Solutions Ltd,2231745,35.57,MICROSOFT LICENSING ENTERPRISE AGREEMENT,YO32 9GZ,Admin
Food Standards Agency,Food Standards Agency,29/07/2015,IT Software Licences,IT Service Delivery,Trustmarque Solutions Ltd,2231943,35.57,MICROSOFT LICENSING ENTERPRISE AGREEMENT,YO32 9GZ,Admin
Food Standards Agency,Food Standards Agency,01/07/2015,Travel UK ,Imports & Exports Team,Redfern Travel Ltd,171,34.11,REDFERN TRAVEL INVOICE WK 25,BD1 3AZ,Admin
Food Standards Agency,Food Standards Agency,01/07/2015,Travel UK ,Area 5 South West England - Cluster 56,Redfern Travel Ltd,171,34.07,REDFERN TRAVEL INVOICE WK 25,BD1 3AZ,Programme
Food Standards Agency,Food Standards Agency,27/07/2015,Travel UK ,Area 2 Wales - Cluster 23,Redfern Travel Ltd,219,34.02,REDFERN TRAVEL INVOICE WK 29,BD1 3AZ,Programme
Food Standards Agency,Food Standards Agency,21/07/2015,Travel UK ,Area 5 South West England - Cluster 55,Redfern Travel Ltd,212,32.33,REDFERN TRAVEL INVOICE WK 28,BD1 3AZ,Programme
Food Standards Agency,Food Standards Agency,01/07/2015,Travel UK ,Analysis & Research Branch,Redfern Travel Ltd,171,30.45,REDFERN TRAVEL INVOICE WK 25,BD1 3AZ,Admin
Food Standards Agency,Food Standards Agency,27/07/2015,Travel UK ,Area 4 North East England - Cluster 44,Redfern Travel Ltd,219,28.16,REDFERN TRAVEL INVOICE WK 29,BD1 3AZ,Programme
Food Standards Agency,Food Standards Agency,07/07/2015,IT Software Licences,IT Service Delivery,Trustmarque Solutions Ltd,2231745,26.93,MICROSOFT LICENSING ENTERPRISE AGREEMENT,YO32 9GZ,Admin
Food Standards Agency,Food Standards Agency,29/07/2015,IT Software Licences,IT Service Delivery,Trustmarque Solutions Ltd,2231943,26.93,MICROSOFT LICENSING ENTERPRISE AGREEMENT,YO32 9GZ,Admin
Food Standards Agency,Food Standards Agency,21/07/2015,Travel UK ,Area 5 South West England - Cluster 57,Redfern Travel Ltd,212,25.59,REDFERN TRAVEL INVOICE WK 28,BD1 3AZ,Programme
Food Standards Agency,Food Standards Agency,13/07/2015,Project Programme expenditure,Comms Directors Office,Carat,213470,23.97,PO 421968 NEWS MEDIA ASSOCIATION  P00265144 21MAY15 4CLR,NW1 3BF,Programme
Food Standards Agency,Food Standards Agency,07/07/2015,IT Software Licences,IT Service Delivery,Trustmarque Solutions Ltd,2231745,22.6,MICROSOFT LICENSING ENTERPRISE AGREEMENT,YO32 9GZ,Admin
Food Standards Agency,Food Standards Agency,29/07/2015,IT Software Licences,IT Service Delivery,Trustmarque Solutions Ltd,2231943,22.6,MICROSOFT LICENSING ENTERPRISE AGREEMENT,YO32 9GZ,Admin
Food Standards Agency,Food Standards Agency,01/07/2015,Travel UK ,Area 2 Wales - Cluster 22,Redfern Travel Ltd,171,22.05,REDFERN TRAVEL INVOICE WK 25,BD1 3AZ,Programme
Food Standards Agency,Food Standards Agency,01/07/2015,Travel UK ,Area 5 South West England - Cluster 53,Redfern Travel Ltd,171,20.4,REDFERN TRAVEL INVOICE WK 25,BD1 3AZ,Programme
Food Standards Agency,Food Standards Agency,07/07/2015,IT Software Licences,IT Service Delivery,Trustmarque Solutions Ltd,2231745,19.32,MICROSOFT LICENSING ENTERPRISE AGREEMENT,YO32 9GZ,Admin
Food Standards Agency,Food Standards Agency,29/07/2015,IT Software Licences,IT Service Delivery,Trustmarque Solutions Ltd,2231943,19.32,MICROSOFT LICENSING ENTERPRISE AGREEMENT,YO32 9GZ,Admin
Food Standards Agency,Food Standards Agency,21/07/2015,Travel UK ,Internal Audit,Redfern Travel Ltd,212,18.17,REDFERN TRAVEL INVOICE WK 28,BD1 3AZ,Admin
Food Standards Agency,Food Standards Agency,07/07/2015,IT Software Licences,IT Service Delivery,Trustmarque Solutions Ltd,2231745,15.05,MICROSOFT LICENSING ENTERPRISE AGREEMENT,YO32 9GZ,Admin
Food Standards Agency,Food Standards Agency,29/07/2015,IT Software Licences,IT Service Delivery,Trustmarque Solutions Ltd,2231943,15.05,MICROSOFT LICENSING ENTERPRISE AGREEMENT,YO32 9GZ,Admin
Food Standards Agency,Food Standards Agency,07/07/2015,IT Software Licences,IT Service Delivery,Trustmarque Solutions Ltd,2231745,14.02,MICROSOFT LICENSING ENTERPRISE AGREEMENT,YO32 9GZ,Admin
Food Standards Agency,Food Standards Agency,29/07/2015,IT Software Licences,IT Service Delivery,Trustmarque Solutions Ltd,2231943,14.02,MICROSOFT LICENSING ENTERPRISE AGREEMENT,YO32 9GZ,Admin
Food Standards Agency,Food Standards Agency,07/07/2015,IT Software Licences,IT Service Delivery,Trustmarque Solutions Ltd,2231745,13.09,MICROSOFT LICENSING ENTERPRISE AGREEMENT,YO32 9GZ,Admin
Food Standards Agency,Food Standards Agency,29/07/2015,IT Software Licences,IT Service Delivery,Trustmarque Solutions Ltd,2231943,13.09,MICROSOFT LICENSING ENTERPRISE AGREEMENT,YO32 9GZ,Admin
Food Standards Agency,Food Standards Agency,07/07/2015,IT Software Licences,IT Service Delivery,Trustmarque Solutions Ltd,2231745,10.01,MICROSOFT LICENSING ENTERPRISE AGREEMENT,YO32 9GZ,Admin
Food Standards Agency,Food Standards Agency,29/07/2015,IT Software Licences,IT Service Delivery,Trustmarque Solutions Ltd,2231943,10.01,MICROSOFT LICENSING ENTERPRISE AGREEMENT,YO32 9GZ,Admin
Food Standards Agency,Food Standards Agency,07/07/2015,IT Software Licences,IT Service Delivery,Trustmarque Solutions Ltd,2231745,7.73,MICROSOFT LICENSING ENTERPRISE AGREEMENT,YO32 9GZ,Admin
Food Standards Agency,Food Standards Agency,29/07/2015,IT Software Licences,IT Service Delivery,Trustmarque Solutions Ltd,2231943,7.73,MICROSOFT LICENSING ENTERPRISE AGREEMENT,YO32 9GZ,Admin
Food Standards Agency,Food Standards Agency,21/07/2015,Subsistence EC,Consumer Protection & Commercial Support,Redfern Travel Ltd,212,2.8,REDFERN TRAVEL INVOICE WK 28,BD1 3AZ,Admin
Food Standards Agency,Food Standards Agency,07/07/2015,Subsistence EC,Contaminants HoD,Redfern Travel Ltd,193,2.8,REDFERN TRAVEL INVOICE WEEK 26,BD1 3AZ,Admin
Food Standards Agency,Food Standards Agency,21/07/2015,Subsistence UK,Food Hygiene Policy Branch,Redfern Travel Ltd,212,2.05,REDFERN TRAVEL INVOICE WK 28,BD1 3AZ,Admin
Food Standards Agency,Food Standards Agency,21/07/2015,Subsistence UK,Additives,Redfern Travel Ltd,212,2.05,REDFERN TRAVEL INVOICE WK 28,BD1 3AZ,Admin
Food Standards Agency,Food Standards Agency,07/07/2015,Subsistence UK,Legal Branch A & Investigations,Redfern Travel Ltd,193,1.4,REDFERN TRAVEL INVOICE WEEK 26,BD1 3AZ,Admin
Food Standards Agency,Food Standards Agency,07/07/2015,Subsistence UK,Non Meat Field Ops,Redfern Travel Ltd,193,1.4,REDFERN TRAVEL INVOICE WEEK 26,BD1 3AZ,Programme
Food Standards Agency,Food Standards Agency,01/07/2015,Subsistence UK,Contaminants HoD,Redfern Travel Ltd,171,1.4,REDFERN TRAVEL INVOICE WK 25,BD1 3AZ,Admin
Food Standards Agency,Food Standards Agency,07/07/2015,Subsistence UK,EU Regulatory Reform Branch,Redfern Travel Ltd,193,1.4,REDFERN TRAVEL INVOICE WEEK 26,BD1 3AZ,Admin
Food Standards Agency,Food Standards Agency,07/07/2015,Subsistence UK,Additives,Redfern Travel Ltd,193,1.4,REDFERN TRAVEL INVOICE WEEK 26,BD1 3AZ,Admin
Food Standards Agency,Food Standards Agency,27/07/2015,Subsistence EC,Legal Branch A & Investigations,Redfern Travel Ltd,219,1.4,REDFERN TRAVEL INVOICE WK 29,BD1 3AZ,Admin
Food Standards Agency,Food Standards Agency,01/07/2015,Subsistence EC,Analysis & Research Branch,Redfern Travel Ltd,171,1.4,REDFERN TRAVEL INVOICE WK 25,BD1 3AZ,Admin
Food Standards Agency,Food Standards Agency,07/07/2015,Subsistence EC,Analysis & Research Branch,Redfern Travel Ltd,193,1.4,REDFERN TRAVEL INVOICE WEEK 26,BD1 3AZ,Admin
Food Standards Agency,Food Standards Agency,01/07/2015,Subsistence EC,Non Meat Field Ops,Redfern Travel Ltd,171,1.4,REDFERN TRAVEL INVOICE WK 25,BD1 3AZ,Programme
Food Standards Agency,Food Standards Agency,07/07/2015,Subsistence EC,Non Meat Field Ops,Redfern Travel Ltd,193,1.4,REDFERN TRAVEL INVOICE WEEK 26,BD1 3AZ,Programme
Food Standards Agency,Food Standards Agency,21/07/2015,Subsistence EC,Chemical Risk Assessment Unit,Redfern Travel Ltd,212,1.4,REDFERN TRAVEL INVOICE WK 28,BD1 3AZ,Admin
Food Standards Agency,Food Standards Agency,07/07/2015,Subsistence EC,Food Hygiene Policy Branch,Redfern Travel Ltd,193,1.4,REDFERN TRAVEL INVOICE WEEK 26,BD1 3AZ,Admin
Food Standards Agency,Food Standards Agency,21/07/2015,Subsistence EC,Animal Feed Branch,Redfern Travel Ltd,212,1.4,REDFERN TRAVEL INVOICE WK 28,BD1 3AZ,Admin
Food Standards Agency,Food Standards Agency,21/07/2015,Subsistence EC,Additives,Redfern Travel Ltd,212,1.4,REDFERN TRAVEL INVOICE WK 28,BD1 3AZ,Admin
Food Standards Agency,Food Standards Agency,27/07/2015,Subsistence EC,Regulatory & International,Redfern Travel Ltd,219,1.4,REDFERN TRAVEL INVOICE WK 29,BD1 3AZ,Admin
Food Standards Agency,Food Standards Agency,27/07/2015,Subsistence EC,Operations Local Delivery ,Redfern Travel Ltd,219,0.71,REDFERN TRAVEL INVOICE WK 29,BD1 3AZ,Admin
Food Standards Agency,Food Standards Agency,21/07/2015,Subsistence EC,Food Hygiene Policy Branch,Redfern Travel Ltd,212,0.71,REDFERN TRAVEL INVOICE WK 28,BD1 3AZ,Admin
Food Standards Agency,Food Standards Agency,03/07/2015,Security,Security & Estates,G4s Integrated Services (Uk) Ltd,90028645,0.01,G4S MONTHLY - JUNE 2015 - VAT ADJUSTMENT ON SECURITY,S81 7QF,Admin
Food Standards Agency,Food Standards Agency,27/07/2015,Security,Security & Estates,G4s Integrated Services (Uk) Ltd,90037098,0.01,G4S MONTHLY - JUL 2015 - VAT ADJUSTMENT ON SECURITY,S81 7QF,Admin
Food Standards Agency,Food Standards Agency,27/07/2015,IT Development projects,IT Strategy,Microsoft Ltd,9620823773,0.01,PO 422403 REMITTING PAYMENT,RG6 1WG,Admin
Food Standards Agency,Food Standards Agency,23/07/2015,IT Development projects,Operations Assurance,Capita Secure Information Solutions Ltd,6060003438,-0.01,PO 422577 APRIL 2015,SN14 0TW,Programme
Food Standards Agency,Food Standards Agency,09/07/2015,Laundry,Operational Delivery,Apparelmaster UK Ltd,61684,-0.08,PO 421794 REGION 546 - NEW CONTRACT,PR2 9ZD,Programme
Food Standards Agency,Food Standards Agency,07/07/2015,Subsistence UK,Chief Executive & Private Office,Redfern Travel Ltd,193,-6.25,REDFERN TRAVEL INVOICE WEEK 26,BD1 3AZ,Admin
Food Standards Agency,Food Standards Agency,17/07/2015,IT Software Licences,IT Service Delivery,Trustmarque Solutions Ltd,2008481,-7.73,MICROSOFT LICENSING ENTERPRISE AGREEMENT,YO32 9GZ,Admin
Food Standards Agency,Food Standards Agency,17/07/2015,IT Software Licences,IT Service Delivery,Trustmarque Solutions Ltd,2008481,-7.73,MICROSOFT LICENSING ENTERPRISE AGREEMENT,YO32 9GZ,Admin
Food Standards Agency,Food Standards Agency,29/07/2015,IT Software Licences,IT Service Delivery,Trustmarque Solutions Ltd,2008481,-7.73,MICROSOFT LICENSING ENTERPRISE AGREEMENT,YO32 9GZ,Admin
Food Standards Agency,Food Standards Agency,17/07/2015,IT Software Licences,IT Service Delivery,Trustmarque Solutions Ltd,2008481,-10.01,MICROSOFT LICENSING ENTERPRISE AGREEMENT,YO32 9GZ,Admin
Food Standards Agency,Food Standards Agency,17/07/2015,IT Software Licences,IT Service Delivery,Trustmarque Solutions Ltd,2008481,-10.01,MICROSOFT LICENSING ENTERPRISE AGREEMENT,YO32 9GZ,Admin
Food Standards Agency,Food Standards Agency,29/07/2015,IT Software Licences,IT Service Delivery,Trustmarque Solutions Ltd,2008481,-10.01,MICROSOFT LICENSING ENTERPRISE AGREEMENT,YO32 9GZ,Admin
Food Standards Agency,Food Standards Agency,17/07/2015,IT Software Licences,IT Service Delivery,Trustmarque Solutions Ltd,2008481,-13.09,MICROSOFT LICENSING ENTERPRISE AGREEMENT,YO32 9GZ,Admin
Food Standards Agency,Food Standards Agency,17/07/2015,IT Software Licences,IT Service Delivery,Trustmarque Solutions Ltd,2008481,-13.09,MICROSOFT LICENSING ENTERPRISE AGREEMENT,YO32 9GZ,Admin
Food Standards Agency,Food Standards Agency,29/07/2015,IT Software Licences,IT Service Delivery,Trustmarque Solutions Ltd,2008481,-13.09,MICROSOFT LICENSING ENTERPRISE AGREEMENT,YO32 9GZ,Admin
Food Standards Agency,Food Standards Agency,17/07/2015,IT Software Licences,IT Service Delivery,Trustmarque Solutions Ltd,2008481,-14.02,MICROSOFT LICENSING ENTERPRISE AGREEMENT,YO32 9GZ,Admin
Food Standards Agency,Food Standards Agency,17/07/2015,IT Software Licences,IT Service Delivery,Trustmarque Solutions Ltd,2008481,-14.02,MICROSOFT LICENSING ENTERPRISE AGREEMENT,YO32 9GZ,Admin
Food Standards Agency,Food Standards Agency,29/07/2015,IT Software Licences,IT Service Delivery,Trustmarque Solutions Ltd,2008481,-14.02,MICROSOFT LICENSING ENTERPRISE AGREEMENT,YO32 9GZ,Admin
Food Standards Agency,Food Standards Agency,17/07/2015,IT Software Licences,IT Service Delivery,Trustmarque Solutions Ltd,2008481,-15.05,MICROSOFT LICENSING ENTERPRISE AGREEMENT,YO32 9GZ,Admin
Food Standards Agency,Food Standards Agency,17/07/2015,IT Software Licences,IT Service Delivery,Trustmarque Solutions Ltd,2008481,-15.05,MICROSOFT LICENSING ENTERPRISE AGREEMENT,YO32 9GZ,Admin
Food Standards Agency,Food Standards Agency,29/07/2015,IT Software Licences,IT Service Delivery,Trustmarque Solutions Ltd,2008481,-15.05,MICROSOFT LICENSING ENTERPRISE AGREEMENT,YO32 9GZ,Admin
Food Standards Agency,Food Standards Agency,17/07/2015,IT Software Licences,IT Service Delivery,Trustmarque Solutions Ltd,2008481,-19.32,MICROSOFT LICENSING ENTERPRISE AGREEMENT,YO32 9GZ,Admin
Food Standards Agency,Food Standards Agency,17/07/2015,IT Software Licences,IT Service Delivery,Trustmarque Solutions Ltd,2008481,-19.32,MICROSOFT LICENSING ENTERPRISE AGREEMENT,YO32 9GZ,Admin
Food Standards Agency,Food Standards Agency,29/07/2015,IT Software Licences,IT Service Delivery,Trustmarque Solutions Ltd,2008481,-19.32,MICROSOFT LICENSING ENTERPRISE AGREEMENT,YO32 9GZ,Admin
Food Standards Agency,Food Standards Agency,17/07/2015,IT Software Licences,IT Service Delivery,Trustmarque Solutions Ltd,2008481,-22.6,MICROSOFT LICENSING ENTERPRISE AGREEMENT,YO32 9GZ,Admin
Food Standards Agency,Food Standards Agency,17/07/2015,IT Software Licences,IT Service Delivery,Trustmarque Solutions Ltd,2008481,-22.6,MICROSOFT LICENSING ENTERPRISE AGREEMENT,YO32 9GZ,Admin
Food Standards Agency,Food Standards Agency,29/07/2015,IT Software Licences,IT Service Delivery,Trustmarque Solutions Ltd,2008481,-22.6,MICROSOFT LICENSING ENTERPRISE AGREEMENT,YO32 9GZ,Admin
Food Standards Agency,Food Standards Agency,17/07/2015,IT Software Licences,IT Service Delivery,Trustmarque Solutions Ltd,2008481,-26.93,MICROSOFT LICENSING ENTERPRISE AGREEMENT,YO32 9GZ,Admin
Food Standards Agency,Food Standards Agency,17/07/2015,IT Software Licences,IT Service Delivery,Trustmarque Solutions Ltd,2008481,-26.93,MICROSOFT LICENSING ENTERPRISE AGREEMENT,YO32 9GZ,Admin
Food Standards Agency,Food Standards Agency,29/07/2015,IT Software Licences,IT Service Delivery,Trustmarque Solutions Ltd,2008481,-26.93,MICROSOFT LICENSING ENTERPRISE AGREEMENT,YO32 9GZ,Admin
Food Standards Agency,Food Standards Agency,01/07/2015,Travel UK ,Contaminants HoD,Redfern Travel Ltd,171,-28.85,REDFERN TRAVEL INVOICE WK 25,BD1 3AZ,Admin
Food Standards Agency,Food Standards Agency,17/07/2015,IT Software Licences,IT Service Delivery,Trustmarque Solutions Ltd,2008481,-35.57,MICROSOFT LICENSING ENTERPRISE AGREEMENT,YO32 9GZ,Admin
Food Standards Agency,Food Standards Agency,17/07/2015,IT Software Licences,IT Service Delivery,Trustmarque Solutions Ltd,2008481,-35.57,MICROSOFT LICENSING ENTERPRISE AGREEMENT,YO32 9GZ,Admin
Food Standards Agency,Food Standards Agency,29/07/2015,IT Software Licences,IT Service Delivery,Trustmarque Solutions Ltd,2008481,-35.57,MICROSOFT LICENSING ENTERPRISE AGREEMENT,YO32 9GZ,Admin
Food Standards Agency,Food Standards Agency,17/07/2015,IT Software Licences,IT Service Delivery,Trustmarque Solutions Ltd,2008481,-37.68,MICROSOFT LICENSING ENTERPRISE AGREEMENT,YO32 9GZ,Admin
Food Standards Agency,Food Standards Agency,17/07/2015,IT Software Licences,IT Service Delivery,Trustmarque Solutions Ltd,2008481,-37.68,MICROSOFT LICENSING ENTERPRISE AGREEMENT,YO32 9GZ,Admin
Food Standards Agency,Food Standards Agency,29/07/2015,IT Software Licences,IT Service Delivery,Trustmarque Solutions Ltd,2008481,-37.68,MICROSOFT LICENSING ENTERPRISE AGREEMENT,YO32 9GZ,Admin
Food Standards Agency,Food Standards Agency,17/07/2015,IT Software Licences,IT Service Delivery,Trustmarque Solutions Ltd,2008481,-38.64,MICROSOFT LICENSING ENTERPRISE AGREEMENT,YO32 9GZ,Admin
Food Standards Agency,Food Standards Agency,17/07/2015,IT Software Licences,IT Service Delivery,Trustmarque Solutions Ltd,2008481,-38.64,MICROSOFT LICENSING ENTERPRISE AGREEMENT,YO32 9GZ,Admin
Food Standards Agency,Food Standards Agency,29/07/2015,IT Software Licences,IT Service Delivery,Trustmarque Solutions Ltd,2008481,-38.64,MICROSOFT LICENSING ENTERPRISE AGREEMENT,YO32 9GZ,Admin
Food Standards Agency,Food Standards Agency,17/07/2015,IT Software Licences,IT Service Delivery,Trustmarque Solutions Ltd,2008481,-50.05,MICROSOFT LICENSING ENTERPRISE AGREEMENT,YO32 9GZ,Admin
Food Standards Agency,Food Standards Agency,17/07/2015,IT Software Licences,IT Service Delivery,Trustmarque Solutions Ltd,2008481,-50.05,MICROSOFT LICENSING ENTERPRISE AGREEMENT,YO32 9GZ,Admin
Food Standards Agency,Food Standards Agency,29/07/2015,IT Software Licences,IT Service Delivery,Trustmarque Solutions Ltd,2008481,-50.05,MICROSOFT LICENSING ENTERPRISE AGREEMENT,YO32 9GZ,Admin
Food Standards Agency,Food Standards Agency,17/07/2015,IT Software Licences,IT Service Delivery,Trustmarque Solutions Ltd,2008481,-55.48,MICROSOFT LICENSING ENTERPRISE AGREEMENT,YO32 9GZ,Admin
Food Standards Agency,Food Standards Agency,17/07/2015,IT Software Licences,IT Service Delivery,Trustmarque Solutions Ltd,2008481,-55.48,MICROSOFT LICENSING ENTERPRISE AGREEMENT,YO32 9GZ,Admin
Food Standards Agency,Food Standards Agency,29/07/2015,IT Software Licences,IT Service Delivery,Trustmarque Solutions Ltd,2008481,-55.48,MICROSOFT LICENSING ENTERPRISE AGREEMENT,YO32 9GZ,Admin
Food Standards Agency,Food Standards Agency,21/07/2015,Subsistence UK,Area 3 North West England - Cluster 34,Redfern Travel Ltd,212,-55.65,REDFERN TRAVEL INVOICE WK 28,BD1 3AZ,Programme
Food Standards Agency,Food Standards Agency,17/07/2015,IT Software Licences,IT Service Delivery,Trustmarque Solutions Ltd,2008481,-65.45,MICROSOFT LICENSING ENTERPRISE AGREEMENT,YO32 9GZ,Admin
Food Standards Agency,Food Standards Agency,17/07/2015,IT Software Licences,IT Service Delivery,Trustmarque Solutions Ltd,2008481,-65.45,MICROSOFT LICENSING ENTERPRISE AGREEMENT,YO32 9GZ,Admin
Food Standards Agency,Food Standards Agency,29/07/2015,IT Software Licences,IT Service Delivery,Trustmarque Solutions Ltd,2008481,-65.45,MICROSOFT LICENSING ENTERPRISE AGREEMENT,YO32 9GZ,Admin
Food Standards Agency,Food Standards Agency,17/07/2015,IT Software Licences,IT Service Delivery,Trustmarque Solutions Ltd,2008481,-70.08,MICROSOFT LICENSING ENTERPRISE AGREEMENT,YO32 9GZ,Admin
Food Standards Agency,Food Standards Agency,17/07/2015,IT Software Licences,IT Service Delivery,Trustmarque Solutions Ltd,2008481,-70.08,MICROSOFT LICENSING ENTERPRISE AGREEMENT,YO32 9GZ,Admin
Food Standards Agency,Food Standards Agency,29/07/2015,IT Software Licences,IT Service Delivery,Trustmarque Solutions Ltd,2008481,-70.08,MICROSOFT LICENSING ENTERPRISE AGREEMENT,YO32 9GZ,Admin
Food Standards Agency,Food Standards Agency,17/07/2015,IT Software Licences,IT Service Delivery,Trustmarque Solutions Ltd,2008481,-75.23,MICROSOFT LICENSING ENTERPRISE AGREEMENT,YO32 9GZ,Admin
Food Standards Agency,Food Standards Agency,17/07/2015,IT Software Licences,IT Service Delivery,Trustmarque Solutions Ltd,2008481,-75.23,MICROSOFT LICENSING ENTERPRISE AGREEMENT,YO32 9GZ,Admin
Food Standards Agency,Food Standards Agency,29/07/2015,IT Software Licences,IT Service Delivery,Trustmarque Solutions Ltd,2008481,-75.23,MICROSOFT LICENSING ENTERPRISE AGREEMENT,YO32 9GZ,Admin
Food Standards Agency,Food Standards Agency,07/07/2015,Travel UK ,Area 2 Wales - Cluster 22,Redfern Travel Ltd,193,-89.19,REDFERN TRAVEL INVOICE WEEK 26,BD1 3AZ,Programme
Food Standards Agency,Food Standards Agency,21/07/2015,Subsistence UK,Chief Executive & Private Office,Redfern Travel Ltd,212,-94,REDFERN TRAVEL INVOICE WK 28,BD1 3AZ,Admin
Food Standards Agency,Food Standards Agency,17/07/2015,IT Software Licences,IT Service Delivery,Trustmarque Solutions Ltd,2008481,-96.58,MICROSOFT LICENSING ENTERPRISE AGREEMENT,YO32 9GZ,Admin
Food Standards Agency,Food Standards Agency,17/07/2015,IT Software Licences,IT Service Delivery,Trustmarque Solutions Ltd,2008481,-96.58,MICROSOFT LICENSING ENTERPRISE AGREEMENT,YO32 9GZ,Admin
Food Standards Agency,Food Standards Agency,29/07/2015,IT Software Licences,IT Service Delivery,Trustmarque Solutions Ltd,2008481,-96.58,MICROSOFT LICENSING ENTERPRISE AGREEMENT,YO32 9GZ,Admin
Food Standards Agency,Food Standards Agency,21/07/2015,Travel UK ,Chief Executive & Private Office,Redfern Travel Ltd,212,-106.55,REDFERN TRAVEL INVOICE WK 28,BD1 3AZ,Admin
Food Standards Agency,Food Standards Agency,17/07/2015,IT Software Licences,IT Service Delivery,Trustmarque Solutions Ltd,2008481,-113.01,MICROSOFT LICENSING ENTERPRISE AGREEMENT,YO32 9GZ,Admin
Food Standards Agency,Food Standards Agency,17/07/2015,IT Software Licences,IT Service Delivery,Trustmarque Solutions Ltd,2008481,-113.01,MICROSOFT LICENSING ENTERPRISE AGREEMENT,YO32 9GZ,Admin
Food Standards Agency,Food Standards Agency,29/07/2015,IT Software Licences,IT Service Delivery,Trustmarque Solutions Ltd,2008481,-113.01,MICROSOFT LICENSING ENTERPRISE AGREEMENT,YO32 9GZ,Admin
Food Standards Agency,Food Standards Agency,17/07/2015,IT Software Licences,IT Service Delivery,Trustmarque Solutions Ltd,2008481,-130.61,MICROSOFT LICENSING ENTERPRISE AGREEMENT,YO32 9GZ,Admin
Food Standards Agency,Food Standards Agency,17/07/2015,IT Software Licences,IT Service Delivery,Trustmarque Solutions Ltd,2008481,-130.61,MICROSOFT LICENSING ENTERPRISE AGREEMENT,YO32 9GZ,Admin
Food Standards Agency,Food Standards Agency,29/07/2015,IT Software Licences,IT Service Delivery,Trustmarque Solutions Ltd,2008481,-130.61,MICROSOFT LICENSING ENTERPRISE AGREEMENT,YO32 9GZ,Admin
Food Standards Agency,Food Standards Agency,17/07/2015,IT Software Licences,IT Service Delivery,Trustmarque Solutions Ltd,2008481,-134.64,MICROSOFT LICENSING ENTERPRISE AGREEMENT,YO32 9GZ,Admin
Food Standards Agency,Food Standards Agency,17/07/2015,IT Software Licences,IT Service Delivery,Trustmarque Solutions Ltd,2008481,-134.64,MICROSOFT LICENSING ENTERPRISE AGREEMENT,YO32 9GZ,Admin
Food Standards Agency,Food Standards Agency,29/07/2015,IT Software Licences,IT Service Delivery,Trustmarque Solutions Ltd,2008481,-134.64,MICROSOFT LICENSING ENTERPRISE AGREEMENT,YO32 9GZ,Admin
Food Standards Agency,Food Standards Agency,17/07/2015,IT Software Licences,IT Service Delivery,Trustmarque Solutions Ltd,2008481,-151.37,MICROSOFT LICENSING ENTERPRISE AGREEMENT,YO32 9GZ,Admin
Food Standards Agency,Food Standards Agency,17/07/2015,IT Software Licences,IT Service Delivery,Trustmarque Solutions Ltd,2008481,-151.37,MICROSOFT LICENSING ENTERPRISE AGREEMENT,YO32 9GZ,Admin
Food Standards Agency,Food Standards Agency,29/07/2015,IT Software Licences,IT Service Delivery,Trustmarque Solutions Ltd,2008481,-151.37,MICROSOFT LICENSING ENTERPRISE AGREEMENT,YO32 9GZ,Admin
Food Standards Agency,Food Standards Agency,17/07/2015,IT Software Licences,IT Service Delivery,Trustmarque Solutions Ltd,2008481,-177.84,MICROSOFT LICENSING ENTERPRISE AGREEMENT,YO32 9GZ,Admin
Food Standards Agency,Food Standards Agency,17/07/2015,IT Software Licences,IT Service Delivery,Trustmarque Solutions Ltd,2008481,-177.84,MICROSOFT LICENSING ENTERPRISE AGREEMENT,YO32 9GZ,Admin
Food Standards Agency,Food Standards Agency,29/07/2015,IT Software Licences,IT Service Delivery,Trustmarque Solutions Ltd,2008481,-177.84,MICROSOFT LICENSING ENTERPRISE AGREEMENT,YO32 9GZ,Admin
Food Standards Agency,Food Standards Agency,17/07/2015,IT Software Licences,IT Service Delivery,Trustmarque Solutions Ltd,2008481,-188.38,MICROSOFT LICENSING ENTERPRISE AGREEMENT,YO32 9GZ,Admin
Food Standards Agency,Food Standards Agency,17/07/2015,IT Software Licences,IT Service Delivery,Trustmarque Solutions Ltd,2008481,-188.38,MICROSOFT LICENSING ENTERPRISE AGREEMENT,YO32 9GZ,Admin
Food Standards Agency,Food Standards Agency,29/07/2015,IT Software Licences,IT Service Delivery,Trustmarque Solutions Ltd,2008481,-188.38,MICROSOFT LICENSING ENTERPRISE AGREEMENT,YO32 9GZ,Admin
Food Standards Agency,Food Standards Agency,17/07/2015,IT Software Licences,IT Service Delivery,Trustmarque Solutions Ltd,2008481,-277.38,MICROSOFT LICENSING ENTERPRISE AGREEMENT,YO32 9GZ,Admin
Food Standards Agency,Food Standards Agency,17/07/2015,IT Software Licences,IT Service Delivery,Trustmarque Solutions Ltd,2008481,-277.38,MICROSOFT LICENSING ENTERPRISE AGREEMENT,YO32 9GZ,Admin
Food Standards Agency,Food Standards Agency,29/07/2015,IT Software Licences,IT Service Delivery,Trustmarque Solutions Ltd,2008481,-277.38,MICROSOFT LICENSING ENTERPRISE AGREEMENT,YO32 9GZ,Admin
Food Standards Agency,Food Standards Agency,17/07/2015,IT Software Licences,IT Service Delivery,Trustmarque Solutions Ltd,2008481,-302.71,MICROSOFT LICENSING ENTERPRISE AGREEMENT,YO32 9GZ,Admin
Food Standards Agency,Food Standards Agency,17/07/2015,IT Software Licences,IT Service Delivery,Trustmarque Solutions Ltd,2008481,-302.71,MICROSOFT LICENSING ENTERPRISE AGREEMENT,YO32 9GZ,Admin
Food Standards Agency,Food Standards Agency,29/07/2015,IT Software Licences,IT Service Delivery,Trustmarque Solutions Ltd,2008481,-302.71,MICROSOFT LICENSING ENTERPRISE AGREEMENT,YO32 9GZ,Admin
Food Standards Agency,Food Standards Agency,17/07/2015,IT Software Licences,IT Service Delivery,Trustmarque Solutions Ltd,2008481,-606,MICROSOFT LICENSING ENTERPRISE AGREEMENT,YO32 9GZ,Admin
Food Standards Agency,Food Standards Agency,17/07/2015,IT Software Licences,IT Service Delivery,Trustmarque Solutions Ltd,2008481,-606,MICROSOFT LICENSING ENTERPRISE AGREEMENT,YO32 9GZ,Admin
Food Standards Agency,Food Standards Agency,29/07/2015,IT Software Licences,IT Service Delivery,Trustmarque Solutions Ltd,2008481,-606,MICROSOFT LICENSING ENTERPRISE AGREEMENT,YO32 9GZ,Admin
Food Standards Agency,Food Standards Agency,17/07/2015,IT Software Licences,IT Service Delivery,Trustmarque Solutions Ltd,2008481,-635.4,MICROSOFT LICENSING ENTERPRISE AGREEMENT,YO32 9GZ,Admin
Food Standards Agency,Food Standards Agency,17/07/2015,IT Software Licences,IT Service Delivery,Trustmarque Solutions Ltd,2008481,-635.4,MICROSOFT LICENSING ENTERPRISE AGREEMENT,YO32 9GZ,Admin
Food Standards Agency,Food Standards Agency,29/07/2015,IT Software Licences,IT Service Delivery,Trustmarque Solutions Ltd,2008481,-635.4,MICROSOFT LICENSING ENTERPRISE AGREEMENT,YO32 9GZ,Admin
Food Standards Agency,Food Standards Agency,17/07/2015,IT Software Licences,IT Service Delivery,Trustmarque Solutions Ltd,2008481,-653.03,MICROSOFT LICENSING ENTERPRISE AGREEMENT,YO32 9GZ,Admin
Food Standards Agency,Food Standards Agency,17/07/2015,IT Software Licences,IT Service Delivery,Trustmarque Solutions Ltd,2008481,-653.03,MICROSOFT LICENSING ENTERPRISE AGREEMENT,YO32 9GZ,Admin
Food Standards Agency,Food Standards Agency,29/07/2015,IT Software Licences,IT Service Delivery,Trustmarque Solutions Ltd,2008481,-653.03,MICROSOFT LICENSING ENTERPRISE AGREEMENT,YO32 9GZ,Admin
Food Standards Agency,Food Standards Agency,17/07/2015,IT Software Licences,IT Service Delivery,Trustmarque Solutions Ltd,2008481,-756.84,MICROSOFT LICENSING ENTERPRISE AGREEMENT,YO32 9GZ,Admin
Food Standards Agency,Food Standards Agency,17/07/2015,IT Software Licences,IT Service Delivery,Trustmarque Solutions Ltd,2008481,-756.84,MICROSOFT LICENSING ENTERPRISE AGREEMENT,YO32 9GZ,Admin
Food Standards Agency,Food Standards Agency,29/07/2015,IT Software Licences,IT Service Delivery,Trustmarque Solutions Ltd,2008481,-756.84,MICROSOFT LICENSING ENTERPRISE AGREEMENT,YO32 9GZ,Admin
Food Standards Agency,Food Standards Agency,17/07/2015,IT Software Licences,IT Service Delivery,Trustmarque Solutions Ltd,2008481,-868.16,MICROSOFT LICENSING ENTERPRISE AGREEMENT,YO32 9GZ,Admin
Food Standards Agency,Food Standards Agency,17/07/2015,IT Software Licences,IT Service Delivery,Trustmarque Solutions Ltd,2008481,-868.16,MICROSOFT LICENSING ENTERPRISE AGREEMENT,YO32 9GZ,Admin
Food Standards Agency,Food Standards Agency,29/07/2015,IT Software Licences,IT Service Delivery,Trustmarque Solutions Ltd,2008481,-868.16,MICROSOFT LICENSING ENTERPRISE AGREEMENT,YO32 9GZ,Admin
Food Standards Agency,Food Standards Agency,17/07/2015,IT Software Licences,IT Service Delivery,Trustmarque Solutions Ltd,2008481,"-1,144.50",MICROSOFT LICENSING ENTERPRISE AGREEMENT,YO32 9GZ,Admin
Food Standards Agency,Food Standards Agency,17/07/2015,IT Software Licences,IT Service Delivery,Trustmarque Solutions Ltd,2008481,"-1,144.50",MICROSOFT LICENSING ENTERPRISE AGREEMENT,YO32 9GZ,Admin
Food Standards Agency,Food Standards Agency,29/07/2015,IT Software Licences,IT Service Delivery,Trustmarque Solutions Ltd,2008481,"-1,144.50",MICROSOFT LICENSING ENTERPRISE AGREEMENT,YO32 9GZ,Admin
Food Standards Agency,Food Standards Agency,17/07/2015,IT Software Licences,IT Service Delivery,Trustmarque Solutions Ltd,2008481,"-1,513.56",MICROSOFT LICENSING ENTERPRISE AGREEMENT,YO32 9GZ,Admin
Food Standards Agency,Food Standards Agency,17/07/2015,IT Software Licences,IT Service Delivery,Trustmarque Solutions Ltd,2008481,"-1,513.56",MICROSOFT LICENSING ENTERPRISE AGREEMENT,YO32 9GZ,Admin
Food Standards Agency,Food Standards Agency,29/07/2015,IT Software Licences,IT Service Delivery,Trustmarque Solutions Ltd,2008481,"-1,513.56",MICROSOFT LICENSING ENTERPRISE AGREEMENT,YO32 9GZ,Admin
Food Standards Agency,Food Standards Agency,17/07/2015,IT Software Licences,IT Service Delivery,Trustmarque Solutions Ltd,2008481,"-1,710.00",MICROSOFT LICENSING ENTERPRISE AGREEMENT,YO32 9GZ,Admin
Food Standards Agency,Food Standards Agency,17/07/2015,IT Software Licences,IT Service Delivery,Trustmarque Solutions Ltd,2008481,"-1,710.00",MICROSOFT LICENSING ENTERPRISE AGREEMENT,YO32 9GZ,Admin
Food Standards Agency,Food Standards Agency,29/07/2015,IT Software Licences,IT Service Delivery,Trustmarque Solutions Ltd,2008481,"-1,710.00",MICROSOFT LICENSING ENTERPRISE AGREEMENT,YO32 9GZ,Admin
Food Standards Agency,Food Standards Agency,17/07/2015,IT Software Licences,IT Service Delivery,Trustmarque Solutions Ltd,2008481,"-2,973.50",MICROSOFT LICENSING ENTERPRISE AGREEMENT,YO32 9GZ,Admin
Food Standards Agency,Food Standards Agency,17/07/2015,IT Software Licences,IT Service Delivery,Trustmarque Solutions Ltd,2008481,"-2,973.50",MICROSOFT LICENSING ENTERPRISE AGREEMENT,YO32 9GZ,Admin
Food Standards Agency,Food Standards Agency,29/07/2015,IT Software Licences,IT Service Delivery,Trustmarque Solutions Ltd,2008481,"-2,973.50",MICROSOFT LICENSING ENTERPRISE AGREEMENT,YO32 9GZ,Admin
Food Standards Agency,Food Standards Agency,17/07/2015,IT Software Licences,IT Service Delivery,Trustmarque Solutions Ltd,2008481,"-3,030.00",MICROSOFT LICENSING ENTERPRISE AGREEMENT,YO32 9GZ,Admin
Food Standards Agency,Food Standards Agency,17/07/2015,IT Software Licences,IT Service Delivery,Trustmarque Solutions Ltd,2008481,"-3,030.00",MICROSOFT LICENSING ENTERPRISE AGREEMENT,YO32 9GZ,Admin
Food Standards Agency,Food Standards Agency,29/07/2015,IT Software Licences,IT Service Delivery,Trustmarque Solutions Ltd,2008481,"-3,030.00",MICROSOFT LICENSING ENTERPRISE AGREEMENT,YO32 9GZ,Admin
Food Standards Agency,Food Standards Agency,17/07/2015,IT Software Licences,IT Service Delivery,Trustmarque Solutions Ltd,2008481,"-3,177.00",MICROSOFT LICENSING ENTERPRISE AGREEMENT,YO32 9GZ,Admin
Food Standards Agency,Food Standards Agency,17/07/2015,IT Software Licences,IT Service Delivery,Trustmarque Solutions Ltd,2008481,"-3,177.00",MICROSOFT LICENSING ENTERPRISE AGREEMENT,YO32 9GZ,Admin
Food Standards Agency,Food Standards Agency,29/07/2015,IT Software Licences,IT Service Delivery,Trustmarque Solutions Ltd,2008481,"-3,177.00",MICROSOFT LICENSING ENTERPRISE AGREEMENT,YO32 9GZ,Admin
Food Standards Agency,Food Standards Agency,17/07/2015,IT Software Licences,IT Service Delivery,Trustmarque Solutions Ltd,2008481,"-3,465.46",MICROSOFT LICENSING ENTERPRISE AGREEMENT,YO32 9GZ,Admin
Food Standards Agency,Food Standards Agency,17/07/2015,IT Software Licences,IT Service Delivery,Trustmarque Solutions Ltd,2008481,"-3,465.46",MICROSOFT LICENSING ENTERPRISE AGREEMENT,YO32 9GZ,Admin
Food Standards Agency,Food Standards Agency,29/07/2015,IT Software Licences,IT Service Delivery,Trustmarque Solutions Ltd,2008481,"-3,465.46",MICROSOFT LICENSING ENTERPRISE AGREEMENT,YO32 9GZ,Admin
Food Standards Agency,Food Standards Agency,17/07/2015,IT Software Licences,IT Service Delivery,Trustmarque Solutions Ltd,2008481,"-4,340.80",MICROSOFT LICENSING ENTERPRISE AGREEMENT,YO32 9GZ,Admin
Food Standards Agency,Food Standards Agency,17/07/2015,IT Software Licences,IT Service Delivery,Trustmarque Solutions Ltd,2008481,"-4,340.80",MICROSOFT LICENSING ENTERPRISE AGREEMENT,YO32 9GZ,Admin
Food Standards Agency,Food Standards Agency,29/07/2015,IT Software Licences,IT Service Delivery,Trustmarque Solutions Ltd,2008481,"-4,340.80",MICROSOFT LICENSING ENTERPRISE AGREEMENT,YO32 9GZ,Admin
Food Standards Agency,Food Standards Agency,17/07/2015,IT Software Licences,IT Service Delivery,Trustmarque Solutions Ltd,2008481,"-5,722.50",MICROSOFT LICENSING ENTERPRISE AGREEMENT,YO32 9GZ,Admin
Food Standards Agency,Food Standards Agency,17/07/2015,IT Software Licences,IT Service Delivery,Trustmarque Solutions Ltd,2008481,"-5,722.50",MICROSOFT LICENSING ENTERPRISE AGREEMENT,YO32 9GZ,Admin
Food Standards Agency,Food Standards Agency,29/07/2015,IT Software Licences,IT Service Delivery,Trustmarque Solutions Ltd,2008481,"-5,722.50",MICROSOFT LICENSING ENTERPRISE AGREEMENT,YO32 9GZ,Admin
Food Standards Agency,Food Standards Agency,17/07/2015,IT Software Licences,IT Service Delivery,Trustmarque Solutions Ltd,2008481,"-6,745.00",MICROSOFT LICENSING ENTERPRISE AGREEMENT,YO32 9GZ,Admin
Food Standards Agency,Food Standards Agency,17/07/2015,IT Software Licences,IT Service Delivery,Trustmarque Solutions Ltd,2008481,"-6,745.00",MICROSOFT LICENSING ENTERPRISE AGREEMENT,YO32 9GZ,Admin
Food Standards Agency,Food Standards Agency,29/07/2015,IT Software Licences,IT Service Delivery,Trustmarque Solutions Ltd,2008481,"-6,745.00",MICROSOFT LICENSING ENTERPRISE AGREEMENT,YO32 9GZ,Admin
Food Standards Agency,Food Standards Agency,17/07/2015,IT Software Licences,IT Service Delivery,Trustmarque Solutions Ltd,2008481,"-7,404.00",MICROSOFT LICENSING ENTERPRISE AGREEMENT,YO32 9GZ,Admin
Food Standards Agency,Food Standards Agency,17/07/2015,IT Software Licences,IT Service Delivery,Trustmarque Solutions Ltd,2008481,"-7,404.00",MICROSOFT LICENSING ENTERPRISE AGREEMENT,YO32 9GZ,Admin
Food Standards Agency,Food Standards Agency,29/07/2015,IT Software Licences,IT Service Delivery,Trustmarque Solutions Ltd,2008481,"-7,404.00",MICROSOFT LICENSING ENTERPRISE AGREEMENT,YO32 9GZ,Admin
Food Standards Agency,Food Standards Agency,17/07/2015,IT Software Licences,IT Service Delivery,Trustmarque Solutions Ltd,2008481,"-7,913.50",MICROSOFT LICENSING ENTERPRISE AGREEMENT,YO32 9GZ,Admin
Food Standards Agency,Food Standards Agency,17/07/2015,IT Software Licences,IT Service Delivery,Trustmarque Solutions Ltd,2008481,"-7,913.50",MICROSOFT LICENSING ENTERPRISE AGREEMENT,YO32 9GZ,Admin
Food Standards Agency,Food Standards Agency,29/07/2015,IT Software Licences,IT Service Delivery,Trustmarque Solutions Ltd,2008481,"-7,913.50",MICROSOFT LICENSING ENTERPRISE AGREEMENT,YO32 9GZ,Admin
Food Standards Agency,Food Standards Agency,17/07/2015,IT Software Licences,IT Service Delivery,Trustmarque Solutions Ltd,2008481,"-8,550.00",MICROSOFT LICENSING ENTERPRISE AGREEMENT,YO32 9GZ,Admin
Food Standards Agency,Food Standards Agency,17/07/2015,IT Software Licences,IT Service Delivery,Trustmarque Solutions Ltd,2008481,"-8,550.00",MICROSOFT LICENSING ENTERPRISE AGREEMENT,YO32 9GZ,Admin
Food Standards Agency,Food Standards Agency,29/07/2015,IT Software Licences,IT Service Delivery,Trustmarque Solutions Ltd,2008481,"-8,550.00",MICROSOFT LICENSING ENTERPRISE AGREEMENT,YO32 9GZ,Admin
Food Standards Agency,Food Standards Agency,17/07/2015,IT Software Licences,IT Service Delivery,Trustmarque Solutions Ltd,2008481,"-14,867.50",MICROSOFT LICENSING ENTERPRISE AGREEMENT,YO32 9GZ,Admin
Food Standards Agency,Food Standards Agency,17/07/2015,IT Software Licences,IT Service Delivery,Trustmarque Solutions Ltd,2008481,"-14,867.50",MICROSOFT LICENSING ENTERPRISE AGREEMENT,YO32 9GZ,Admin
Food Standards Agency,Food Standards Agency,29/07/2015,IT Software Licences,IT Service Delivery,Trustmarque Solutions Ltd,2008481,"-14,867.50",MICROSOFT LICENSING ENTERPRISE AGREEMENT,YO32 9GZ,Admin
Food Standards Agency,Food Standards Agency,17/07/2015,IT Software Licences,IT Service Delivery,Trustmarque Solutions Ltd,2008481,"-17,327.31",MICROSOFT LICENSING ENTERPRISE AGREEMENT,YO32 9GZ,Admin
Food Standards Agency,Food Standards Agency,17/07/2015,IT Software Licences,IT Service Delivery,Trustmarque Solutions Ltd,2008481,"-17,327.31",MICROSOFT LICENSING ENTERPRISE AGREEMENT,YO32 9GZ,Admin
Food Standards Agency,Food Standards Agency,29/07/2015,IT Software Licences,IT Service Delivery,Trustmarque Solutions Ltd,2008481,"-17,327.31",MICROSOFT LICENSING ENTERPRISE AGREEMENT,YO32 9GZ,Admin
Food Standards Agency,Food Standards Agency,17/07/2015,IT Software Licences,IT Service Delivery,Trustmarque Solutions Ltd,2008481,"-33,725.00",MICROSOFT LICENSING ENTERPRISE AGREEMENT,YO32 9GZ,Admin
Food Standards Agency,Food Standards Agency,17/07/2015,IT Software Licences,IT Service Delivery,Trustmarque Solutions Ltd,2008481,"-33,725.00",MICROSOFT LICENSING ENTERPRISE AGREEMENT,YO32 9GZ,Admin
Food Standards Agency,Food Standards Agency,29/07/2015,IT Software Licences,IT Service Delivery,Trustmarque Solutions Ltd,2008481,"-33,725.00",MICROSOFT LICENSING ENTERPRISE AGREEMENT,YO32 9GZ,Admin
Food Standards Agency,Food Standards Agency,17/07/2015,IT Software Licences,IT Service Delivery,Trustmarque Solutions Ltd,2008481,"-37,020.00",MICROSOFT LICENSING ENTERPRISE AGREEMENT,YO32 9GZ,Admin
Food Standards Agency,Food Standards Agency,17/07/2015,IT Software Licences,IT Service Delivery,Trustmarque Solutions Ltd,2008481,"-37,020.00",MICROSOFT LICENSING ENTERPRISE AGREEMENT,YO32 9GZ,Admin
Food Standards Agency,Food Standards Agency,29/07/2015,IT Software Licences,IT Service Delivery,Trustmarque Solutions Ltd,2008481,"-37,020.00",MICROSOFT LICENSING ENTERPRISE AGREEMENT,YO32 9GZ,Admin
Food Standards Agency,Food Standards Agency,17/07/2015,IT Software Licences,IT Service Delivery,Trustmarque Solutions Ltd,2008481,"-39,567.50",MICROSOFT LICENSING ENTERPRISE AGREEMENT,YO32 9GZ,Admin
Food Standards Agency,Food Standards Agency,17/07/2015,IT Software Licences,IT Service Delivery,Trustmarque Solutions Ltd,2008481,"-39,567.50",MICROSOFT LICENSING ENTERPRISE AGREEMENT,YO32 9GZ,Admin
Food Standards Agency,Food Standards Agency,29/07/2015,IT Software Licences,IT Service Delivery,Trustmarque Solutions Ltd,2008481,"-39,567.50",MICROSOFT LICENSING ENTERPRISE AGREEMENT,YO32 9GZ,Admin
"Date Run: 20-AUG-15 05.10.27 PM --- Company Code : '17' , Payment Start Date : '01-JUL-2015' , Payment End Date : '31-JUL-2015'",,,,,,,,,,
